Workbook

Sheet 1. Info
AB1: Algoma Power Inc.
AB2: Atikokan Hydro Inc.
AB3: Attawapiskat Power Corp.
AB4: Bluewater Power Distribution Corporation
AB5: Brant County Power Inc.
AB6: Brantford Power Inc.
AB7: Burlington Hydro Inc.
AB8: Cambridge and North Dumfries Hydro Inc.
AB9: Canadian Niagara Power Inc.
AB10: Centre Wellington Hydro Ltd.
AB11: Chapleau Public Utilities Corporation
F12: Version | G12: 3 | AB12: Clinton Power Corporation
AB13: COLLUS Power Corporation
C14: Utility Name | D14: Toronto Hydro-Electric System Limited | AB14: Cooperative Hydro Embrun Inc.
AB15: E.L.K. Energy Inc.
C16: Assigned EB Number | D16: EB-2014-0116 | AB16: Enersource Hydro Mississauga Inc.
AB17: Entegrus Powerlines Inc.
C18: Name and Title | AB18: ENWIN Utilities Ltd.
AB19: Erie Thames Powerlines Corporation
C20: Phone Number | AB20: Espanola Regional Hydro Distribution Corporation
AB21: Essex Powerlines Corporation
C22: Email Address | AB22: Festival Hydro Inc.
AB23: Fort Albany Power Corporation
C24: Date | AB24: Fort Frances Power Corporation
AB25: Greater Sudbury Hydro Inc.
C26: Last COS Re-based Year | D26: 2011 | AB26: Grimsby Power Inc.
AB27: Guelph Hydro Electric Systems Inc.
AB28: Haldimand County Hydro Inc.
A29: Note: Drop-down lists are shaded blue; Input cells are shaded green. | AB29: Halton Hills Hydro Inc.
AB30: Hearst Power Distribution Company Limited
AB31: Horizon Utilities Corporation
AB32: Hydro 2000 Inc.
AB33: Hydro Hawkesbury Inc.
AB34: Hydro One Brampton Networks Inc.
AB35: Hydro One Networks Inc
AB36: Hydro Ottawa Limited
AB37: Innisfil Hydro Distribution Systems Limited
AB38: Kashechewan Power Corporation
AB39: Kenora Hydro Electric Corporation Ltd.
AB40: Kingston Hydro Corporation
AB41: Kitchener-Wilmot Hydro Inc.
AB42: Lakefront Utilities Inc.
AB43: Lakeland Power Distribution Ltd.
AB44: London Hydro Inc.
AB45: Midland Power Utility Corporation
AB46: Milton Hydro Distribution inc.
AB47: Newmarket - Tay Power Distribution Ltd.
AB48: Niagara Peninsula Energy Inc.
AB49: Niagara-on-the-Lake Hydro Inc.
AB50: Norfolk Power Distribution Inc.
AB51: North Bay Hydro Distribution Limited
AB52: Northern Ontario Wires Inc.
AB53: Oakville Hydro Electricity Distribution Inc.
AB54: Orangeville Hydro Limited
AB55: Orillia Power Distribution Corporation
AB56: Oshawa PUC Networks Inc.
AB57: Ottawa River Power Corporation
AB58: Parry Sound Power Corporation
AB59: Peterborough Distribution Incorporated
AB60: PowerStream Inc.
AB61: PUC Distribution Inc.
AB62: Renfrew Hydro Inc.
AB63: Rideau St. Lawrence Distribution Inc.
AB64: Sioux Lookout Hydro Inc.
AB65: St. Thomas Energy Inc.
AB66: Thunder Bay Hydro Electricity Distribution Inc.
AB67: Tillsonburg Hydro Inc.
AB68: Toronto Hydro-Electric System Limited
AB69: Veridian Connections Inc.
AB70: Wasaga Distribution Inc.
AB71: Waterloo North Hydro Inc.
AB72: Welland Hydro-Electric System Corp.
AB73: Wellington North Power Inc.
AB74: West Coast Huron Energy Inc.
AB75: West Perth Power Inc.
AB76: Westario Power Inc.
AB77: Whitby Hydro Electric Corporation
AB78: Woodstock Hydro Services Inc.

Sheet Table of Contents-Corrected
AC1: Algoma Power Inc.
AC2: Atikokan Hydro Inc.
AC3: Attawapiskat Power Corp.
AC4: Bluewater Power Distribution Corporation
AC5: Brant County Power Inc.
AC6: Brantford Power Inc.
AC7: Burlington Hydro Inc.
AC8: Cambridge and North Dumfries Hydro Inc.
AC9: Canadian Niagara Power Inc.
AC10: Centre Wellington Hydro Ltd.
B12: Toronto Hydro-Electric System Limited
B13: Table of Contents
B15: 1. Info | D15: I. Schedule 8 CCA Bridge Year | E15: /C | F15: O. Schedule 8 CCA Test Year | H15: /C
B16: A. Data Input Sheet | C16: /C | D16: J. Schedule 10 CEC Bridge Year | E16: /C | F16: P. Schedule 10 CEC Test Year | H16: /C
B17: B. Tax Rates & Exemptions | D17: K. Sch 13 Tax Reserves Bridge | F17: Q. Sch 13 Tax Reserve Test Year
B18: C. Sch 8 Hist | D18: L. Sch 7-1 Loss Cfwd Bridge | F18: R. Sch 7-1 Loss Cfwd Test Year
B19: D. Schedule 10 CEC Hist | D19: M. Adj. Taxable Income Bridge | E19: /C | F19: S. Taxable Income Test Year | H19: /C
B20: E. Sch 13 Tax Reserves Hist | D20: Sch 7-3 Interest Bridge | E20: /C | F20: Sch 7-3 Interest Test Year | H20: /C
B21: F. Sch 7-1 Loss Cfwd Hist | D21: N. PILs, Tax Provision Bridge | E21: /C | F21: T. PILs,Tax Provision Test Year | H21: /C
B22: G. Adj. Taxable Income Historic
B23: H. PILS, Tax Provision Historic

Sheet A. Data Input Sheet-Corrected
C8: Toronto Hydro-Electric System Limited
C9: Data Input Sheet - Applicant's Rate Base
C11: Rate Base | G11: 3247562846
C13: Return on Ratebase
C14: Deemed ShortTerm Debt % | E14: 0.04 | F14: T | G14: =G11*E14 -> 129902513.8 | H14: W = S * T
C15: Deemed Long Term Debt % | E15: 0.56 | F15: U | G15: =G11*E15 -> 1818635194 | H15: X = S * U
C16: Deemed Equity % | E16: 0.4 | F16: V | G16: =G11*E16 -> 1299025138 | H16: Y = S * V
C18: Short Term Interest Rate | E18: 0.0138 | F18: Z | G18: =G14*E18 -> 1792654.691 | H18: AC = W * Z
C19: Long Term Interest | E19: =4.34%-0.03% -> 0.0431 | F19: AA | G19: =G15*E19 -> 78383176.85 | H19: AD = X * AA
C20: Return on Equity (Regulatory Income) | E20: 0.093 | F20: AB | G20: =G16*E20 -> 120809337.9 | H20: AE = Y * AB
C21: Return on Rate Base | G21: =SUM(G18:G20) -> 200985169.4 | H21: AF = AC + AD + AE
C26: Questions that must be answered | G26: Historical | H26: Bridge | I26: Test Year
C28: 1. Does the applicant have any Investment Tax Credits (ITC)? | G28: Yes | H28: Yes | I28: Yes
C30: 2. Does the applicant have any SRED Expenditures? | G30: Yes | H30: Yes | I30: Yes
C32: 3. Does the applicant have any Capital Gains or Losses for tax purposes? | G32: Yes | H32: Yes | I32: Yes
C34: 4. Does the applicant have any Capital Leases? | G34: Yes | H34: Yes | I34: Yes
C36: 5. Does the applicant have any Loss Carry-Forwards (non-capital or net capital)? | G36: No | H36: No | I36: No
C38: 6. Since 1999, has the applicant acquired another regulated applicant's assets? | G38: No | H38: No | I38: No
C40: 7. Did the applicant pay dividends? | G40: Yes | H40: No | I40: No
C41: If Yes, please describe what was the tax treatment in the manager's summary.
C43: 8. Did the applicant elect to capitalize interest incurred on CWIP for tax purposes? | G43: No | H43: No | I43: No

Sheet B. Tax Rates & Exemptions
C9: Toronto Hydro-Electric System Limited
C10: Tax Rates & Exemptions
C12: Tax Rates
C13: Federal & Provincial | E13: Effective | F13: Effective | G13: Effective | H13: Effective | I13: Effective
C14: As of June 20, 2012 | E14: 2011-01-01 | F14: 2012-01-01 | G14: 2013-01-01 | H14: 2014-01-01 | I14: 2015-01-01
C16: Federal income tax
C17: General corporate rate | E17: 0.38 | F17: 0.38 | G17: 0.38 | H17: 0.38 | I17: 0.38
C18: Federal tax abatement | E18: -0.1 | F18: -0.1 | G18: -0.1 | H18: -0.1 | I18: -0.1
C19: Adjusted federal rate | E19: =SUM(E17:E18) -> 0.28 | F19: =SUM(F17:F18) -> 0.28 | G19: =SUM(G17:G18) -> 0.28 | H19: =SUM(H17:H18) -> 0.28 | I19: =SUM(I17:I18) -> 0.28
C21: Rate reduction | E21: -0.115 | F21: -0.13 | G21: -0.13 | H21: -0.13 | I21: -0.13
E22: =SUM(E19:E21) -> 0.165 | F22: =SUM(F19:F21) -> 0.15 | G22: =SUM(G19:G21) -> 0.15 | H22: =SUM(H19:H21) -> 0.15 | I22: =SUM(I19:I21) -> 0.15
C24: Ontario income tax | E24: 0.1175 | F24: 0.115 | G24: 0.115 | H24: 0.115 | I24: 0.115
C26: Combined federal and Ontario | E26: =E22+E24 -> 0.2825 | F26: =F22+F24 -> 0.265 | G26: =G22+G24 -> 0.265 | H26: =H22+H24 -> 0.265 | I26: =I22+I24 -> 0.265
C28: Federal & Ontario Small Business
C29: Federal small business threshold | E29: 500000 | F29: 500000 | G29: 500000 | H29: 500000 | I29: 500000
C30: Ontario Small Business Threshold | E30: 500000 | F30: 500000 | G30: 500000 | H30: 500000 | I30: 500000
C32: Federal small business rate | E32: 0.11 | F32: 0.11 | G32: 0.11 | H32: 0.11 | I32: 0.11
C34: Ontario small business rate | E34: 0.045 | F34: 0.045 | G34: 0.045 | H34: 0.045 | I34: 0.045

Sheet C. Sch 8 Hist
C9: Toronto Hydro-Electric System Limited
C10: Schedule 8 - Historical Year
C12: Class | D12: Class Description | E12: UCC End of Year Historic per tax returns | F12: Less: Non-Distribution Portion | G12: UCC Regulated Historic Year
C13: 1 | D13: Distribution System - post 1987 | E13: =1023638334+39676106 -> 1063314440 | F13: 39676106 | G13: =+E13-F13 -> 1023638334
C14: 1 Enhanced | D14: Non-residential Buildings Reg. 1100(1)(a.1) election | G14: =+E14-F14 -> 0
C15: 2 | D15: Distribution System - pre 1988 | E15: 309715644 | G15: =+E15-F15 -> 309715644
C16: 8 | D16: General Office/Stores Equip | E16: =29422905+2407 -> 29425312 | F16: 2407 | G16: 29422905
C17: 10 | D17: Computer Hardware/ Vehicles | E17: 14046718 | G17: 14046718
C18: 10.1 | D18: Certain Automobiles | E18: ='[5]2011 Sch 8 and 10 UCC&CEC'!$F$18 -> 0 | G18: 0
C19: 12 | D19: Computer Software | E19: 7858379 | G19: 7858379
C20: 13 1 | D20: Lease # 1 | E20: 21146 | G20: 21146
C21: 13 2 | D21: Lease #2 | E21: 93505 | G21: 93505
C22: 13 3 | D22: Lease # 3 | E22: 95911 | G22: 95911
C23: 13 4 | D23: Lease # 4 | E23: 411224 | G23: 411224
C24: 13 5 | D24: Lease # 5 | G24: 0
C25: 13 6 | D25: Lease # 6 | G25: =+E25-F25 -> 0
C26: 13 7 | D26: Lease # 7 | G26: 0
C27: 14 | D27: Franchise | G27: 0
C28: 17 | D28: New Electrical Generating Equipment Acq'd after Feb 27/00 Other Than Bldgs | E28: 19030639 | G28: 19030639
C29: 42 | D29: Fibre Optic Cable | E29: 37410 | G29: =+E29-F29 -> 37410
C30: 43.1 | D30: Certain Energy-Efficient Electrical Generating Equipment | E30: ='[5]2011 Sch 8 and 10 UCC&CEC'!$F$28 -> 0 | G30: 0
C31: 43.2 | D31: Certain Clean Energy Generation Equipment | E31: 2943069 | F31: 2943069 | G31: 0
C32: 45 | D32: Computers & Systems Software acq'd post Mar 22/04 | E32: 81658 | G32: 81658
C33: 46 | D33: Data Network Infrastructure Equipment (acq'd post Mar 22/04) | E33: ='[5]2011 Sch 8 and 10 UCC&CEC'!$F$30 -> 0 | G33: 0
C34: 47 | D34: Distribution System - post February 2005 | E34: 1310574811 | G34: 1310574811
C35: 50 | D35: Data Network Infrastructure Equipment - post Mar 2007 | E35: =7933092+2809 -> 7935901 | F35: 2809 | G35: 7933092
C36: 52 | D36: Computer Hardware and system software | G36: 0
C37: 95 | D37: CWIP | E37: =405809399+1749681 -> 407559080 | F37: 1749681 | G37: 405809399
G38: 0
G39: 0
G40: 0
G41: 0
G42: 0
G43: 0
G44: 0
G45: 0
G46: 0
G47: 0
D48: SUB-TOTAL - UCC | E48: =SUM(E13:E47) -> 3173144847 | F48: =SUM(F13:F47) -> 44374072 | G48: =SUM(G13:G47) -> 3128770775

Sheet D. Schedule 10 CEC Hist
C8: Toronto Hydro-Electric System Limited
C9: Schedule 10 CEC - Historical Year
C12: Cumulative Eligible Capital - Beginning of Year | K12: 21595209
C13: Additions
C14: Cost of Eligible Capital Property Acquired during Historical Year | G14: 2489752
C16: Other Adjustments | G16: 0
C18: Subtotal | G18: =SUM(G14,G16) -> 2489752 | I18: x 3/4 = | J18: =3/4*G18 -> 1867314
C20: Non-taxable portion of a non-arm's length transferor's gain realized on the | G20: 0 | I20: x 1/2 = | J20: =IF((G20*0.5)<0, 0, G20*0.5) -> 0
C21: transfer of an ECP to the Corporation after Friday, December 20, 2002
J22: =IF((J18-J20)<0,0,J18-J20) -> 1867314 | K22: =J22 -> 1867314
C24: Amount transferred on amalgamation or wind-up of subsidiary | G24: 0 | K24: =G24 -> 0
F26: Subtotal | K26: =SUM(K12,K22,K24) -> 23462523
C28: Deductions
C30: Proceeds of sale (less outlays and expenses not otherwise deductible)
C31: from the disposition of all ECP during Historical Year
C33: Other Adjustments | G33: 0
F35: Subtotal | G35: =SUM(G33,G30) -> 0 | I35: x 3/4 = | K35: =G35*3/4 -> 0
C38: Cumulative Eligible Capital Balance | K38: =K26-K35 -> 23462523
C40: Current Year Deduction | I40: =K38 -> 23462523 | J40: x 7% = | K40: =I40*0.07 -> 1642376.61
C42: Cumulative Eligible Capital - Closing Balance | K42: =K38-K40 -> 21820146.39

Sheet E. Sch 13 Tax Reserves Hist
C8: Toronto Hydro-Electric System Limited
C9: Schedule 13 Tax Reserves - Historical Year
C11: Continuity of Reserves
C13: Description | D13: Historical Balance as per tax returns | E13: Non-Distribution Eliminations | F13: Utility Only
C15: Capital Gains Reserves ss.40(1) | F15: =D15-E15 -> 0
C16: Tax Reserves Not Deducted for accounting purposes
C17: Reserve for doubtful accounts ss. 20(1)(l) | F17: =D17-E17 -> 0
C18: Reserve for goods and services not delivered ss. 20(1)(m) | F18: 0
C19: Reserve for unpaid amounts ss. 20(1)(n) | F19: 0
C20: Debt & Share Issue Expenses ss. 20(1)(e) | F20: 0
C21: Other tax reserves | F21: 0
F22: 0
F23: 0
F24: 0
F25: 0
F26: 0
C27: Total | D27: =SUM(D17:D26) -> 0 | E27: =SUM(E17:E26) -> 0 | F27: =SUM(F17:F26) -> 0
C29: Financial Statement Reserves (not deductible for Tax Purposes)
C30: General Reserve for Inventory Obsolescence (non-specific) | F30: =D30-E30 -> 0
C31: General reserve for bad debts | F31: 0
C32: Accrued Employee Future Benefits: | F32: 0
C33: - Medical and Life Insurance | F33: 0
C34: -Short & Long-term Disability | F34: 0
C35: -Accmulated Sick Leave | F35: 0
C36: - Termination Cost | D36: 490000 | F36: 490000
C37: - Other Post-Employment Benefits | D37: 238792000 | E37: 1079000 | F37: 237713000
C38: Provision for Environmental Costs | F38: 0
C39: Restructuring Costs | F39: 0
C40: Accrued Contingent Litigation Costs | F40: 0
C41: Accrued Self-Insurance Costs | F41: 0
C42: Other Contingent Liabilities | F42: 0
C43: Bonuses Accrued and Not Paid Within 180 Days of Year-End ss. 78(4) | F43: 0
C44: Unpaid Amounts to Related Person and Not Paid Within 3 Taxation Years ss. 78(1) | F44: 0
C45: Other | F45: 0
F49: 0
F50: 0
C51: Total | D51: =SUM(D30:D50) -> 239282000 | E51: =SUM(E30:E50) -> 1079000 | F51: =SUM(F30:F50) -> 238203000

Sheet F. Sch 7-1 Loss Cfwd Hist
C8: Toronto Hydro-Electric System Limited
C9: Schedule 7-1 Loss Carry Forward - Historical
C11: Corporation Loss Continuity and Application
C13: Non-Capital Loss Carry Forward Deduction | F13: Total | G13: Non-Distribution Portion | H13: Utility Balance
C14: Actual Historic | H14: =F14-G14 -> 0
C16: Net Capital Loss Carry Forward Deduction | F16: Total | G16: Non-Distribution Portion | H16: Utility Balance
C17: Actual Historic | H17: =F17-G17 -> 0

Sheet G. Adj. Taxable Income Historic
C9: Toronto Hydro-Electric System Limited
C10: Adjusted Taxable Income - Historical Year
C12: See Exhibit 4B, Tab 2, Schedule 3 for copy of 2013 tax return.
D14: T2S1 line # | E14: Total for Legal Entity | F14: Non-Distribution Eliminations | G14: Historic Wires Only
C15: Income before PILs/Taxes | D15: A | E15: =115739021+3122853 -> 118861874 | F15: 231840 | G15: =+E15-F15 -> 118630034
C16: Additions:
C17: Interest and penalties on taxes | D17: 103 | G17: =+E17-F17 -> 0
C18: Amortization of tangible assets | D18: 104 | E18: 171474771 | F18: 1987699 | G18: 169487072
C19: Amortization of intangible assets | D19: 106 | G19: 0
C20: Recapture of capital cost allowance from Schedule 8 | D20: 107 | G20: 0
C21: Gain on sale of eligible capital property from Schedule 10 | D21: 108 | G21: 0
C22: Income or loss for tax purposes- joint ventures or partnerships | D22: 109 | G22: 0
C23: Loss in equity of subsidiaries and affiliates | D23: 110 | G23: 0
C24: Loss on disposal of assets | D24: 111 | G24: 0
C25: Charitable donations | D25: 112 | E25: 31343 | G25: 31343
C26: Taxable Capital Gains | D26: 113 | E26: 573891 | G26: 573891
C27: Political Donations | D27: 114 | G27: 0
C28: Deferred and prepaid expenses | D28: 116 | G28: 0
C29: Scientific research expenditures deducted on financial statements | D29: 118 | E29: 2592851 | G29: 2592851
C30: Capitalized interest | D30: 119 | G30: 0
C31: Non-deductible club dues and fees | D31: 120 | E31: 376763 | F31: 6624 | G31: 370139
C32: Non-deductible meals and entertainment expense | D32: 121 | E32: 270680 | F32: 2005 | G32: 268675
C33: Non-deductible automobile expenses | D33: 122 | E33: 5438 | G33: 5438
C34: Non-deductible life insurance premiums | D34: 123 | G34: 0
C35: Non-deductible company pension plans | D35: 124 | G35: 0
C36: Tax reserves deducted in prior year | D36: 125 | G36: 0
C37: Reserves from financial statements- balance at end of year | D37: 126 | E37: =+'E. Sch 13 Tax Reserves Hist'!D51 -> 239282000 | F37: =+'E. Sch 13 Tax Reserves Hist'!E51 -> 1079000 | G37: 238203000
C38: Soft costs on construction and renovation of buildings | D38: 127 | G38: 0
C39: Book loss on joint ventures or partnerships | D39: 205 | G39: 0
C40: Capital items expensed | D40: 206 | G40: 0
C41: Debt issue expense | D41: 208 | E41: 1038109 | G41: 1038109
C42: Development expenses claimed in current year | D42: 212 | G42: 0
C43: Financing fees deducted in books | D43: 216 | G43: 0
C44: Gain on settlement of debt | D44: 220 | G44: 0
C45: Non-deductible advertising | D45: 226 | G45: 0
C46: Non-deductible interest | D46: 227 | G46: 0
C47: Non-deductible legal and accounting fees | D47: 228 | G47: 0
C48: Recapture of SR&ED expenditures | D48: 231 | G48: 0
C49: Share issue expense | D49: 235 | G49: 0
C50: Write down of capital property | D50: 236 | G50: 0
C51: Amounts received in respect of qualifying environment trust per paragraphs 12(1)(z.1) and 12(1)(z.2) | D51: 237 | G51: 0
C52: Other Additions
C53: Interest Expensed on Capital Leases | D53: 290 | G53: 0
C54: Realized Income from Deferred Credit Accounts | D54: 291 | G54: 0
C55: Pensions | D55: 292 | G55: 0
C56: Non-deductible penalties | D56: 293 | E56: =10007+169 -> 10176 | G56: 10176
D57: 294 | G57: 0
D58: 295 | G58: 0
C59: ARO Accretion expense | E59: 176603 | G59: 176603
C60: Capital Contributions Received (ITA 12(1)(x)) | E60: 25535013 | F60: 2380830 | G60: 23154183
C61: Lease Inducements Received (ITA 12(1)(x)) | G61: 0
C62: Deferred Revenue (ITA 12(1)(a)) | E62: 20020088 | F62: 19850819 | G62: 169269
C63: Prior Year Investment Tax Credits received | G63: 0
C64: Other Post-Employment Benefits adjustments | E64: =1279492+117000+20230000 -> 21626492 | F64: 103000 | G64: 21523492
C65: Investment Tax Credits taxed in the year | E65: =801687+79124+206986+37654 -> 1125451 | G65: 1125451
C66: Regulatory item adjustments | E66: =6008336+7105084+529375+646300+16169+34020+19421104+1433445+46804 -> 35240637 | G66: 35240637
C67: Current year expense deducted in prior year for tax | E67: 3123 | G67: 3123
G68: 0
G69: 0
G70: 0
G71: 0
G72: 0
G73: 0
C74: Total Additions | E74: =SUM(E16:E73) -> 519383429 | F74: =SUM(F16:F73) -> 25409977 | G74: =SUM(G16:G73) -> 493973452
C76: Deductions:
C77: Gain on disposal of assets per financial statements | D77: 401 | E77: 1279608 | G77: =+E77-F77 -> 1279608
C78: Dividends not taxable under section 83 | D78: 402 | G78: 0
C79: Capital cost allowance from Schedule 8 | D79: 403 | E79: 202449164 | F79: 3336173 | G79: 199112991
C80: Terminal loss from Schedule 8 | D80: 404 | G80: 0
C81: Cumulative eligible capital deduction from Schedule 10 | D81: 405 | E81: 1642377 | G81: 1642377
C82: Allowable business investment loss | D82: 406 | G82: 0
C83: Deferred and prepaid expenses | D83: 409 | G83: 0
C84: Scientific research expenses claimed in year | D84: 411 | E84: 3824233 | G84: 3824233
C85: Tax reserves claimed in current year | D85: 413 | G85: 0
C86: Reserves from financial statements - balance at beginning of year | D86: 414 | E86: 258462000 | F86: 1109000 | G86: 257353000
C87: Contributions to deferred income plans | D87: 416 | G87: 0
C88: Book income of joint venture or partnership | D88: 305 | G88: 0
C89: Equity in income from subsidiary or affiliates | D89: 306 | G89: 0
C90: Other deductions: (Please explain in detail the nature of the item)
C92: Interest capitalized for accounting deducted for tax | D92: 390 | G92: 0
C93: Capital Lease Payments | D93: 391 | E93: 15181 | G93: 15181
C94: Non-taxable imputed interest income on deferral and variance accounts | D94: 392 | G94: 0
D95: 393 | G95: 0
D96: 394 | G96: 0
C97: ARO Payments - Deductible for Tax when Paid | E97: 572285 | G97: 572285
C98: ITA 13(7.4) Election - Capital Contributions Received | E98: =+E60 -> 25535013 | F98: =+F60 -> 2380830 | G98: 23154183
C99: ITA 13(7.4) Election - Apply Lease Inducement to cost of Leaseholds | G99: 0
C100: Deferred Revenue - ITA 20(1)(m) reserve | E100: =+E62 -> 20020088 | F100: =+F62 -> 19850819 | G100: 169269
C101: Principal portion of lease payments | G101: 0
C102: Lease Inducement Book Amortization credit to income | G102: 0
C103: Financing fees for tax ITA 20(1)(e) and (e.1) | E103: 2015708 | G103: 2015708
C104: Capitalized Other Post-Employment Benefits adjustment | E104: 5836577 | G104: 5836577
C105: Regulatory items adjustments | E105: =179106+58128533+929991+732618+7091418+3322500 -> 70384166 | G105: 70384166
C106: Deferred legal costs and lease cancellation | E106: =141905+15384 -> 157289 | G106: 157289
C107: Prior year Investment tax credits taxed in prior year | E107: =311800+593345 -> 905145 | G107: 905145
C108: Other Post-Employment Benefits adjustments | E108: =157000+807495 -> 964495 | G108: 964495
C109: Gain on sale of shares | E109: =10468+179 -> 10647 | G109: 10647
C110: Capitalized interest not taxable for tax | G110: 0
C112: Total Deductions | E112: =SUM(E77:E111) -> 594073976 | F112: =SUM(F77:F111) -> 26676822 | G112: =SUM(G77:G111) -> 567397154
C114: Net Income for Tax Purposes | E114: =+E15+E74-E112 -> 44171327 | F114: =+F15+F74-F112 -> -1035005 | G114: =+G15+G74-G112 -> 45206332
C116: Charitable donations from Schedule 2 | D116: 311 | E116: 31343 | G116: =+E116-F116 -> 31343
C117: Taxable dividends deductible under section 112 or 113, from Schedule 3 (item 82) | D117: 320 | G117: =+E117-F117 -> 0
C118: Non-capital losses of preceding taxation years from Schedule 4 | D118: 331 | G118: =+E118-F118 -> 0
C119: Net-capital losses of preceding taxation years from Schedule 4 (Please include explanation and calculation in Manager's summary) | D119: 332 | G119: =+E119-F119 -> 0
C120: Limited partnership losses of preceding taxation years from Schedule 4 | D120: 335 | G120: =+E120-F120 -> 0
C122: TAXABLE INCOME | E122: =+E114-SUM(E116:E120) -> 44139984 | F122: =+F114-SUM(F116:F120) -> -1035005 | G122: =+G114-SUM(G116:G120) -> 45174989

Sheet H. PILS, Tax Provision Historic
B6: Toronto Hydro-Electric System Limited
B7: PILs Tax Provision - Historical Year
B10: See Exhibit 4B, Tab 2, Schedule 3 for copy of 2013 tax return.

Sheet I. Sch 8 CCA Bridge Year-Corr
C8: Toronto Hydro-Electric System Limited
C9: Schedule 8 CCA - Bridge Year
C11: Class | D11: Class Description | E11: UCC Regulated Historic Year | F11: Additions | G11: Disposals (Negative) | H11: UCC Before 1/2 Yr Adjustment | I11: 1/2 Year Rule {1/2 Additions Less Disposals} | J11: Reduced UCC | K11: Rate % | L11: Bridge Year CCA | M11: UCC End of Bridge Year
C12: =IF(ISBLANK('C. Sch 8 Hist'!C13), "", 'C. Sch 8 Hist'!C13) -> 1 | D12: =IF(ISBLANK('C. Sch 8 Hist'!D13), "", 'C. Sch 8 Hist'!D13) -> Distribution System - post 1987 | E12: =IF(ISBLANK('C. Sch 8 Hist'!E13), "", 'C. Sch 8 Hist'!G13) -> 1023638334 | F12: =30847016-1287968 -> 29559048 | G12: -169047 | H12: =MAX((SUM(E12:G12)),0) -> 1053028335 | I12: =IF((F12+G12)<=0, 0,(F12+G12)*0.5) -> 14695000.5 | J12: =+H12-I12 -> 1038333334 | K12: 0.04 | L12: =IF(+J12<0,+J12,+J12*K12) -> 41533333.38 | M12: =MAX(0,+H12-L12) -> 1011495002
C13: =IF(ISBLANK('C. Sch 8 Hist'!C14), "", 'C. Sch 8 Hist'!C14) -> 1 Enhanced | D13: =IF(ISBLANK('C. Sch 8 Hist'!D14), "", 'C. Sch 8 Hist'!D14) -> Non-residential Buildings Reg. 1100(1)(a.1) election | E13: =IF(ISBLANK('C. Sch 8 Hist'!E14), "", 'C. Sch 8 Hist'!G14) ->  | H13: =MAX((SUM(E13:G13)),0) -> 0 | I13: =IF((F13+G13)<=0, 0,(F13+G13)*0.5) -> 0 | J13: =+H13-I13 -> 0 | K13: 0.06 | L13: 0 | M13: 0
C14: =IF(ISBLANK('C. Sch 8 Hist'!C15), "", 'C. Sch 8 Hist'!C15) -> 2 | D14: =IF(ISBLANK('C. Sch 8 Hist'!D15), "", 'C. Sch 8 Hist'!D15) -> Distribution System - pre 1988 | E14: =IF(ISBLANK('C. Sch 8 Hist'!E15), "", 'C. Sch 8 Hist'!G15) -> 309715644 | H14: 309715644 | I14: 0 | J14: 309715644 | K14: 0.06 | L14: 18582938.64 | M14: 291132705.4
C15: =IF(ISBLANK('C. Sch 8 Hist'!C16), "", 'C. Sch 8 Hist'!C16) -> 8 | D15: =IF(ISBLANK('C. Sch 8 Hist'!D16), "", 'C. Sch 8 Hist'!D16) -> General Office/Stores Equip | E15: =IF(ISBLANK('C. Sch 8 Hist'!E16), "", 'C. Sch 8 Hist'!G16) -> 29422905 | F15: 3601232 | H15: 33024137 | I15: 1800616 | J15: 31223521 | K15: 0.2 | L15: 6244704.2 | M15: 26779432.8
C16: =IF(ISBLANK('C. Sch 8 Hist'!C17), "", 'C. Sch 8 Hist'!C17) -> 10 | D16: =IF(ISBLANK('C. Sch 8 Hist'!D17), "", 'C. Sch 8 Hist'!D17) -> Computer Hardware/ Vehicles | E16: =IF(ISBLANK('C. Sch 8 Hist'!E17), "", 'C. Sch 8 Hist'!G17) -> 14046718 | F16: 4217708 | G16: -31575 | H16: 18232851 | I16: 2093066.5 | J16: 16139784.5 | K16: 0.3 | L16: 4841935.35 | M16: 13390915.65
C17: =IF(ISBLANK('C. Sch 8 Hist'!C18), "", 'C. Sch 8 Hist'!C18) -> 10.1 | D17: =IF(ISBLANK('C. Sch 8 Hist'!D18), "", 'C. Sch 8 Hist'!D18) -> Certain Automobiles | E17: =IF(ISBLANK('C. Sch 8 Hist'!E18), "", 'C. Sch 8 Hist'!G18) -> 0 | H17: 0 | I17: 0 | J17: 0 | K17: 0.3 | L17: 0 | M17: 0
C18: =IF(ISBLANK('C. Sch 8 Hist'!C19), "", 'C. Sch 8 Hist'!C19) -> 12 | D18: =IF(ISBLANK('C. Sch 8 Hist'!D19), "", 'C. Sch 8 Hist'!D19) -> Computer Software | E18: =IF(ISBLANK('C. Sch 8 Hist'!E19), "", 'C. Sch 8 Hist'!G19) -> 7858379 | F18: =13837218+462380 -> 14299598 | H18: 22157977 | I18: 7149799 | J18: 15008178 | K18: 1 | L18: =IF(+J18<0,+J18,+J18*K18) -> 15008178 | M18: =MAX(0,+H18-L18) -> 7149799
C19: =IF(ISBLANK('C. Sch 8 Hist'!C20), "", 'C. Sch 8 Hist'!C20) -> 13 1 | D19: =IF(ISBLANK('C. Sch 8 Hist'!D20), "", 'C. Sch 8 Hist'!D20) -> Lease # 1 | E19: =IF(ISBLANK('C. Sch 8 Hist'!E20), "", 'C. Sch 8 Hist'!G20) -> 21146 | H19: 21146 | I19: 0 | J19: 21146 | K19: SL | L19: 21146 | M19: 0
C20: =IF(ISBLANK('C. Sch 8 Hist'!C21), "", 'C. Sch 8 Hist'!C21) -> 13 2 | D20: =IF(ISBLANK('C. Sch 8 Hist'!D21), "", 'C. Sch 8 Hist'!D21) -> Lease #2 | E20: =IF(ISBLANK('C. Sch 8 Hist'!E21), "", 'C. Sch 8 Hist'!G21) -> 93505 | H20: 93505 | I20: 0 | J20: 93505 | K20: SL | L20: 62337 | M20: 31168
C21: =IF(ISBLANK('C. Sch 8 Hist'!C22), "", 'C. Sch 8 Hist'!C22) -> 13 3 | D21: =IF(ISBLANK('C. Sch 8 Hist'!D22), "", 'C. Sch 8 Hist'!D22) -> Lease # 3 | E21: =IF(ISBLANK('C. Sch 8 Hist'!E22), "", 'C. Sch 8 Hist'!G22) -> 95911 | H21: 95911 | I21: 0 | J21: 95911 | K21: SL | L21: 38365 | M21: 57546
C22: =IF(ISBLANK('C. Sch 8 Hist'!C23), "", 'C. Sch 8 Hist'!C23) -> 13 4 | D22: =IF(ISBLANK('C. Sch 8 Hist'!D23), "", 'C. Sch 8 Hist'!D23) -> Lease # 4 | E22: =IF(ISBLANK('C. Sch 8 Hist'!E23), "", 'C. Sch 8 Hist'!G23) -> 411224 | H22: 411224 | I22: 0 | J22: 411224 | K22: SL | L22: =123739-6246-1 -> 117492 | M22: 293732
C23: =IF(ISBLANK('C. Sch 8 Hist'!C24), "", 'C. Sch 8 Hist'!C24) -> 13 5 | D23: =IF(ISBLANK('C. Sch 8 Hist'!D24), "", 'C. Sch 8 Hist'!D24) -> Lease # 5 | E23: =IF(ISBLANK('C. Sch 8 Hist'!E24), "", 'C. Sch 8 Hist'!G24) ->  | F23: 387591 | H23: =MAX((SUM(E23:G23)),0) -> 387591 | I23: =IF((F23+G23)<=0, 0,(F23+G23)*0.5) -> 193795.5 | J23: =+H23-I23 -> 193795.5 | K23: SL | L23: 38759 | M23: =MAX(0,+H23-L23) -> 348832
C24: 13 6 | D24: =IF(ISBLANK('C. Sch 8 Hist'!D25), "", 'C. Sch 8 Hist'!D25) -> Lease # 6 | E24: =IF(ISBLANK('C. Sch 8 Hist'!E25), "", 'C. Sch 8 Hist'!G25) ->  | H24: 0 | I24: 0 | J24: 0 | K24: SL | L24: 0 | M24: 0
C25: =IF(ISBLANK('C. Sch 8 Hist'!C27), "", 'C. Sch 8 Hist'!C27) -> 14 | D25: =IF(ISBLANK('C. Sch 8 Hist'!D27), "", 'C. Sch 8 Hist'!D27) -> Franchise | E25: =IF(ISBLANK('C. Sch 8 Hist'!E27), "", 'C. Sch 8 Hist'!G27) ->  | H25: 0 | I25: 0 | J25: 0 | K25: SL | L25: 0 | M25: 0
C26: =IF(ISBLANK('C. Sch 8 Hist'!C28), "", 'C. Sch 8 Hist'!C28) -> 17 | D26: =IF(ISBLANK('C. Sch 8 Hist'!D28), "", 'C. Sch 8 Hist'!D28) -> New Electrical Generating Equipment Acq'd after Feb 27/00 Other Than Bldgs | E26: =IF(ISBLANK('C. Sch 8 Hist'!E28), "", 'C. Sch 8 Hist'!G28) -> 19030639 | H26: 19030639 | I26: 0 | J26: 19030639 | K26: 0.08 | L26: =IF(+J26<0,+J26,+J26*K26) -> 1522451.12 | M26: 17508187.88
C27: =IF(ISBLANK('C. Sch 8 Hist'!C29), "", 'C. Sch 8 Hist'!C29) -> 42 | D27: =IF(ISBLANK('C. Sch 8 Hist'!D29), "", 'C. Sch 8 Hist'!D29) -> Fibre Optic Cable | E27: =IF(ISBLANK('C. Sch 8 Hist'!E29), "", 'C. Sch 8 Hist'!G29) -> 37410 | H27: 37410 | I27: 0 | J27: 37410 | K27: 0.12 | L27: =IF(+J27<0,+J27,+J27*K27) -> 4489.2 | M27: 32920.8
C28: =IF(ISBLANK('C. Sch 8 Hist'!C30), "", 'C. Sch 8 Hist'!C30) -> 43.1 | D28: =IF(ISBLANK('C. Sch 8 Hist'!D30), "", 'C. Sch 8 Hist'!D30) -> Certain Energy-Efficient Electrical Generating Equipment | E28: =IF(ISBLANK('C. Sch 8 Hist'!E30), "", 'C. Sch 8 Hist'!G30) -> 0 | F28: ='[5]Bridge Year Additions & Disp.'!$D$109 -> 0 | H28: 0 | I28: 0 | J28: 0 | K28: 0.3 | L28: 0 | M28: 0
C29: =IF(ISBLANK('C. Sch 8 Hist'!C31), "", 'C. Sch 8 Hist'!C31) -> 43.2 | D29: =IF(ISBLANK('C. Sch 8 Hist'!D31), "", 'C. Sch 8 Hist'!D31) -> Certain Clean Energy Generation Equipment | E29: =IF(ISBLANK('C. Sch 8 Hist'!E31), "", 'C. Sch 8 Hist'!G31) -> 0 | H29: 0 | I29: 0 | J29: 0 | K29: 0.5 | L29: 0 | M29: 0
C30: =IF(ISBLANK('C. Sch 8 Hist'!C32), "", 'C. Sch 8 Hist'!C32) -> 45 | D30: =IF(ISBLANK('C. Sch 8 Hist'!D32), "", 'C. Sch 8 Hist'!D32) -> Computers & Systems Software acq'd post Mar 22/04 | E30: =IF(ISBLANK('C. Sch 8 Hist'!E32), "", 'C. Sch 8 Hist'!G32) -> 81658 | H30: 81658 | I30: 0 | J30: 81658 | K30: 0.45 | L30: 36746.1 | M30: 44911.9
C31: =IF(ISBLANK('C. Sch 8 Hist'!C33), "", 'C. Sch 8 Hist'!C33) -> 46 | D31: =IF(ISBLANK('C. Sch 8 Hist'!D33), "", 'C. Sch 8 Hist'!D33) -> Data Network Infrastructure Equipment (acq'd post Mar 22/04) | E31: =IF(ISBLANK('C. Sch 8 Hist'!E33), "", 'C. Sch 8 Hist'!G33) -> 0 | H31: 0 | I31: 0 | J31: 0 | K31: 0.3 | L31: 0 | M31: 0
C32: =IF(ISBLANK('C. Sch 8 Hist'!C34), "", 'C. Sch 8 Hist'!C34) -> 47 | D32: =IF(ISBLANK('C. Sch 8 Hist'!D34), "", 'C. Sch 8 Hist'!D34) -> Distribution System - post February 2005 | E32: =IF(ISBLANK('C. Sch 8 Hist'!E34), "", 'C. Sch 8 Hist'!G34) -> 1310574811 | F32: =380036566-1128962-6486984 -> 372420620 | H32: 1682995431 | I32: 186210310 | J32: 1496785121 | K32: 0.08 | L32: 119742809.7 | M32: 1563252621
C33: =IF(ISBLANK('C. Sch 8 Hist'!C35), "", 'C. Sch 8 Hist'!C35) -> 50 | D33: =IF(ISBLANK('C. Sch 8 Hist'!D35), "", 'C. Sch 8 Hist'!D35) -> Data Network Infrastructure Equipment - post Mar 2007 | E33: =IF(ISBLANK('C. Sch 8 Hist'!E35), "", 'C. Sch 8 Hist'!G35) -> 7933092 | F33: =32080348+11235 -> 32091583 | H33: 40024675 | I33: 16045791.5 | J33: 23978883.5 | K33: 0.55 | L33: 13188385.93 | M33: 26836289.07
C34: =IF(ISBLANK('C. Sch 8 Hist'!C36), "", 'C. Sch 8 Hist'!C36) -> 52 | D34: =IF(ISBLANK('C. Sch 8 Hist'!D36), "", 'C. Sch 8 Hist'!D36) -> Computer Hardware and system software | E34: =IF(ISBLANK('C. Sch 8 Hist'!E36), "", 'C. Sch 8 Hist'!G36) ->  | H34: 0 | I34: 0 | J34: 0 | K34: 1 | L34: 0 | M34: 0
C35: =IF(ISBLANK('C. Sch 8 Hist'!C37), "", 'C. Sch 8 Hist'!C37) -> 95 | D35: =IF(ISBLANK('C. Sch 8 Hist'!D37), "", 'C. Sch 8 Hist'!D37) -> CWIP | E35: =IF(ISBLANK('C. Sch 8 Hist'!E37), "", 'C. Sch 8 Hist'!G37) -> 405809399 | H35: 405809399 | I35: 0 | J35: 405809399 | L35: 0 | M35: 405809399
C36: =IF(ISBLANK('C. Sch 8 Hist'!C38), "", 'C. Sch 8 Hist'!C38) ->  | D36: =IF(ISBLANK('C. Sch 8 Hist'!D38), "", 'C. Sch 8 Hist'!D38) ->  | E36: =IF(ISBLANK('C. Sch 8 Hist'!E38), "", 'C. Sch 8 Hist'!G38) ->  | H36: 0 | I36: 0 | J36: 0 | L36: 0 | M36: 0
C37: =IF(ISBLANK('C. Sch 8 Hist'!C39), "", 'C. Sch 8 Hist'!C39) ->  | D37: =IF(ISBLANK('C. Sch 8 Hist'!D39), "", 'C. Sch 8 Hist'!D39) ->  | E37: =IF(ISBLANK('C. Sch 8 Hist'!E39), "", 'C. Sch 8 Hist'!G39) ->  | H37: 0 | I37: 0 | J37: 0 | L37: 0 | M37: 0
C38: =IF(ISBLANK('C. Sch 8 Hist'!C40), "", 'C. Sch 8 Hist'!C40) ->  | D38: =IF(ISBLANK('C. Sch 8 Hist'!D40), "", 'C. Sch 8 Hist'!D40) ->  | E38: =IF(ISBLANK('C. Sch 8 Hist'!E40), "", 'C. Sch 8 Hist'!G40) ->  | H38: =MAX((SUM(E38:G38)),0) -> 0 | I38: 0 | J38: =+H38-I38 -> 0 | L38: 0 | M38: 0
C39: =IF(ISBLANK('C. Sch 8 Hist'!C41), "", 'C. Sch 8 Hist'!C41) ->  | D39: =IF(ISBLANK('C. Sch 8 Hist'!D41), "", 'C. Sch 8 Hist'!D41) ->  | E39: =IF(ISBLANK('C. Sch 8 Hist'!E41), "", 'C. Sch 8 Hist'!G41) ->  | H39: =MAX((SUM(E39:G39)),0) -> 0 | I39: 0 | J39: =+H39-I39 -> 0 | L39: 0 | M39: 0
C40: =IF(ISBLANK('C. Sch 8 Hist'!C42), "", 'C. Sch 8 Hist'!C42) ->  | D40: =IF(ISBLANK('C. Sch 8 Hist'!D42), "", 'C. Sch 8 Hist'!D42) ->  | E40: =IF(ISBLANK('C. Sch 8 Hist'!E42), "", 'C. Sch 8 Hist'!G42) ->  | H40: =MAX((SUM(E40:G40)),0) -> 0 | I40: 0 | J40: =+H40-I40 -> 0 | L40: 0 | M40: 0
C41: =IF(ISBLANK('C. Sch 8 Hist'!C43), "", 'C. Sch 8 Hist'!C43) ->  | D41: =IF(ISBLANK('C. Sch 8 Hist'!D43), "", 'C. Sch 8 Hist'!D43) ->  | E41: =IF(ISBLANK('C. Sch 8 Hist'!E43), "", 'C. Sch 8 Hist'!G43) ->  | H41: 0 | I41: 0 | J41: 0 | L41: 0 | M41: 0
C42: =IF(ISBLANK('C. Sch 8 Hist'!C44), "", 'C. Sch 8 Hist'!C44) ->  | D42: =IF(ISBLANK('C. Sch 8 Hist'!D44), "", 'C. Sch 8 Hist'!D44) ->  | E42: =IF(ISBLANK('C. Sch 8 Hist'!E44), "", 'C. Sch 8 Hist'!G44) ->  | H42: 0 | I42: 0 | J42: 0 | L42: 0 | M42: 0
C43: =IF(ISBLANK('C. Sch 8 Hist'!C45), "", 'C. Sch 8 Hist'!C45) ->  | D43: =IF(ISBLANK('C. Sch 8 Hist'!D45), "", 'C. Sch 8 Hist'!D45) ->  | E43: =IF(ISBLANK('C. Sch 8 Hist'!E45), "", 'C. Sch 8 Hist'!G45) ->  | H43: 0 | I43: 0 | J43: 0 | L43: 0 | M43: 0
C44: =IF(ISBLANK('C. Sch 8 Hist'!C46), "", 'C. Sch 8 Hist'!C46) ->  | D44: =IF(ISBLANK('C. Sch 8 Hist'!D46), "", 'C. Sch 8 Hist'!D46) ->  | E44: =IF(ISBLANK('C. Sch 8 Hist'!E46), "", 'C. Sch 8 Hist'!G46) ->  | H44: 0 | I44: 0 | J44: 0 | L44: 0 | M44: 0
C45: =IF(ISBLANK('C. Sch 8 Hist'!C47), "", 'C. Sch 8 Hist'!C47) ->  | D45: =IF(ISBLANK('C. Sch 8 Hist'!D47), "", 'C. Sch 8 Hist'!D47) ->  | E45: =IF(ISBLANK('C. Sch 8 Hist'!E47), "", 'C. Sch 8 Hist'!G47) ->  | H45: 0 | I45: 0 | J45: 0 | L45: 0 | M45: 0
D46: TOTAL | E46: =SUM(E12:E45) -> 3128770775 | F46: 456577380 | G46: -200622 | H46: 3585147533 | I46: 228188379 | J46: 3356959154 | L46: =SUM(L12:L45) -> 220984070.6 | M46: =SUM(M12:M45) -> 3364163462

Sheet J. Sch 10 CEC Bridge Year-Corr
C9: Toronto Hydro-Electric System Limited
C10: Schedule 10 CEC - Bridge Year
C12: Cumulative Eligible Capital | K12: ='D. Schedule 10 CEC Hist'!K42 -> 21820146.39
C13: Additions
C14: Cost of Eligible Capital Property Acquired during Test Year | G14: =3370623-1665442 -> 1705181
C16: Other Adjustments | G16: 0
C18: Subtotal | G18: =SUM(G14,G16) -> 1705181 | I18: x 3/4 = | J18: =3/4*G18 -> 1278885.75
C20: Non-taxable portion of a non-arm's length transferor's gain realized on the | G20: 0 | I20: x 1/2 = | J20: =IF((G20*0.5)<0, 0, G20*0.5) -> 0
C21: transfer of an ECP to the Corporation after Friday, December 20, 2002
J22: =IF((J18-J20)<0,0,J18-J20) -> 1278885.75 | K22: =J22 -> 1278885.75
C24: Amount transferred on amalgamation or wind-up of subsidiary | G24: 0 | K24: =G24 -> 0
F26: Subtotal | K26: =SUM(K12,K22,K24) -> 23099032.14
C28: Deductions
C30: Proceeds of sale (less outlays and expenses not otherwise deductible)
C31: from the disposition of all ECP during Test Year
C33: Other Adjustments | G33: 0
F35: Subtotal | G35: =SUM(G33,G30) -> 0 | I35: x 3/4 = | K35: =G35*3/4 -> 0
C38: Cumulative Eligible Capital Balance | K38: =K26-K35 -> 23099032.14
C40: Current Year Deduction | I40: =K38 -> 23099032.14 | J40: x 7% = | K40: =I40*0.07 -> 1616932.25
C42: Cumulative Eligible Capital - Closing Balance | K42: =K38-K40 -> 21482099.89

Sheet K. Sch 13 Tax Reserves Bridge
C7: Toronto Hydro-Electric System Limited
C8: Schedule 13 Tax Reserves - Bridge Year
C10: Continuity of Reserves
G11: Bridge Year Adjustments
C12: Description | D12: Historic Utility Only | E12: Eliminate Amounts Not Relevant for Bridge Year | F12: Adjusted Utility Balance | G12: Additions | H12: Disposals | I12: Balance for Bridge Year | J12: Change During the Year | K12: Disallowed Expenses
C14: Capital Gains Reserves ss.40(1) | D14: ='E. Sch 13 Tax Reserves Hist'!F15 -> 0 | F14: =SUM(D14:E14) -> 0 | I14: =F14+G14-H14 -> 0 | J14: =+I14-F14 -> 0
C15: Tax Reserves Not Deducted for accounting purposes
C16: Reserve for doubtful accounts ss. 20(1)(l) | D16: ='E. Sch 13 Tax Reserves Hist'!F17 -> 0 | F16: =SUM(D16:E16) -> 0 | I16: =F16+G16-H16 -> 0 | J16: =+I16-F16 -> 0
C17: Reserve for goods and services not delivered ss. 20(1)(m) | D17: ='E. Sch 13 Tax Reserves Hist'!F18 -> 0 | F17: 0 | I17: 0 | J17: 0
C18: Reserve for unpaid amounts ss. 20(1)(n) | D18: ='E. Sch 13 Tax Reserves Hist'!F19 -> 0 | F18: 0 | I18: 0 | J18: 0
C19: Debt & Share Issue Expenses ss. 20(1)(e) | D19: ='E. Sch 13 Tax Reserves Hist'!F20 -> 0 | F19: 0 | I19: 0 | J19: 0
C20: Other tax reserves | D20: ='E. Sch 13 Tax Reserves Hist'!F21 -> 0 | F20: 0 | I20: 0 | J20: 0
D21: ='E. Sch 13 Tax Reserves Hist'!F25 -> 0 | F21: 0 | I21: 0 | J21: 0
D22: ='E. Sch 13 Tax Reserves Hist'!F26 -> 0 | F22: 0 | I22: 0 | J22: 0
C23: Total | D23: =SUM(D16:D22) -> 0 | E23: 0 | F23: 0 | G23: 0 | H23: 0 | I23: 0 | J23: 0 | K23: 0
D24: 0
C25: Financial Statement Reserves (not deductible for Tax Purposes)
C27: General Reserve for Inventory Obsolescence (non-specific) | D27: =+'E. Sch 13 Tax Reserves Hist'!F30 -> 0 | F27: =SUM(D27:E27) -> 0 | I27: =F27+G27-H27 -> 0 | J27: =+I27-F27 -> 0
C28: General reserve for bad debts | D28: =+'E. Sch 13 Tax Reserves Hist'!F31 -> 0 | F28: =SUM(D28:E28) -> 0 | I28: 0 | J28: 0
C29: Accrued Employee Future Benefits: | D29: =+'E. Sch 13 Tax Reserves Hist'!F32 -> 0 | F29: 0 | I29: 0 | J29: 0
C30: - Medical and Life Insurance | D30: =+'E. Sch 13 Tax Reserves Hist'!F33 -> 0 | F30: 0 | I30: 0 | J30: 0
C31: -Short & Long-term Disability | D31: =+'E. Sch 13 Tax Reserves Hist'!F34 -> 0 | F31: 0 | I31: 0 | J31: 0
C32: -Accmulated Sick Leave | D32: =+'E. Sch 13 Tax Reserves Hist'!F35 -> 0 | F32: 0 | I32: 0 | J32: 0
C33: - Termination Cost | D33: =+'E. Sch 13 Tax Reserves Hist'!F36 -> 490000 | F33: 490000 | H33: 490000 | I33: 0 | J33: -490000
C34: - Other Post-Employment Benefits | D34: =+'E. Sch 13 Tax Reserves Hist'!F37 -> 237713000 | E34: -2743000 | F34: 234970000 | G34: 8070000 | I34: 243040000 | J34: 8070000
D35: =+'E. Sch 13 Tax Reserves Hist'!F38 -> 0 | F35: 0 | I35: 0
C36: Provision for Environmental Costs | D36: =+'E. Sch 13 Tax Reserves Hist'!F39 -> 0 | F36: 0 | I36: 0 | J36: 0
C37: Restructuring Costs | D37: =+'E. Sch 13 Tax Reserves Hist'!F40 -> 0 | F37: 0 | I37: 0 | J37: 0
C38: Accrued Contingent Litigation Costs | D38: =+'E. Sch 13 Tax Reserves Hist'!F41 -> 0 | F38: 0 | I38: 0 | J38: 0
C39: Accrued Self-Insurance Costs | D39: =+'E. Sch 13 Tax Reserves Hist'!F42 -> 0 | F39: 0 | J39: 0
C40: Other Contingent Liabilities | D40: =+'E. Sch 13 Tax Reserves Hist'!F43 -> 0 | F40: 0 | I40: 0 | J40: 0
C41: Bonuses Accrued and Not Paid Within 180 Days of Year-End ss. 78(4) | D41: =+'E. Sch 13 Tax Reserves Hist'!F44 -> 0 | F41: 0 | I41: 0 | J41: 0
C42: Unpaid Amounts to Related Person and Not Paid Within 3 Taxation Years ss. 78(1) | D42: =+'E. Sch 13 Tax Reserves Hist'!F45 -> 0 | F42: 0 | I42: 0 | J42: 0
C43: Other | D43: =+'E. Sch 13 Tax Reserves Hist'!F46 -> 0 | F43: 0 | I43: 0 | J43: 0
D44: =+'E. Sch 13 Tax Reserves Hist'!F47 -> 0 | F44: 0 | I44: 0 | J44: =+I44-F44 -> 0
C45: Total | D45: =SUM(D27:D43) -> 238203000 | E45: -2743000 | F45: 235460000 | G45: 8070000 | H45: 490000 | I45: 243040000 | J45: 7580000 | K45: 0
D46: 0

Sheet L. Sch 7-1 Loss Cfwd Bridge
C7: Toronto Hydro-Electric System Limited
C8: Corporation Loss Continuity and Application
C10: Schedule 7-1 Loss Carry Forward - Bridge Year
C12: Non-Capital Loss Carry Forward Deduction | F12: Total
C13: Actual Historic | F13: ='F. Sch 7-1 Loss Cfwd Hist'!H14 -> 0
C14: Application of Loss Carry Forward to reduce taxable income in Bridge Year
C15: Other Adjustments Add (+) Deduct (-)
C16: Balance available for use in Test Year | F16: =F13-F14+F15 -> 0
C17: Amount to be used in Bridge Year
C18: Balance available for use post Bridge Year | F18: =F16-F17 -> 0
C20: Net Capital Loss Carry Forward Deduction | F20: Total
C21: Actual Historic | F21: ='F. Sch 7-1 Loss Cfwd Hist'!H17 -> 0
C22: Application of Loss Carry Forward to reduce taxable income in Bridge Year
C23: Other Adjustments Add (+) Deduct (-)
C24: Balance available for use in Test Year | F24: =F21-F22+F23 -> 0
C25: Amount to be used in Bridge Year
C26: Balance available for use post Bridge Year | F26: =F24-F25 -> 0

Sheet M. AdjTaxableIncomeBridge-Corr
C6: Toronto Hydro-Electric System Limited
C7: Adjusted Taxable Income - Bridge Year
D9: T2S1 line # | E9: Total for Regulated Utility
C10: Income before PILs/Taxes | D10: A | E10: 108739493
C12: Additions:
C13: Interest and penalties on taxes | D13: 103
C14: Amortization of tangible assets | D14: 104 | E14: =150535804-129408 -> 150406396
C15: Amortization of intangible assets | D15: 106
C16: Recapture of capital cost allowance from Schedule 8 | D16: 107
C17: Gain on sale of eligible capital property from Schedule 10 | D17: 108
C18: Income or loss for tax purposes- joint ventures or partnerships | D18: 109
C19: Loss in equity of subsidiaries and affiliates | D19: 110
C20: Loss on disposal of assets | D20: 111
C21: Charitable donations | D21: 112
C22: Taxable Capital Gains | D22: 113 | E22: 145900
C23: Political Donations | D23: 114
C24: Deferred and prepaid expenses | D24: 116
C25: Scientific research expenditures deducted on financial statements | D25: 118
C26: Capitalized interest | D26: 119
C27: Non-deductible club dues and fees | D27: 120 | E27: 364296
C28: Non-deductible meals and entertainment expense | D28: 121 | E28: 121681
C29: Non-deductible automobile expenses | D29: 122
C30: Non-deductible life insurance premiums | D30: 123
C31: Non-deductible company pension plans | D31: 124
C32: Tax reserves deducted in prior year | D32: 125
C33: Reserves from financial statements- balance at end of year | D33: 126 | E33: =+'K. Sch 13 Tax Reserves Bridge'!I45 -> 243040000
C34: Soft costs on construction and renovation of buildings | D34: 127
C35: Book loss on joint ventures or partnerships | D35: 205
C36: Capital items expensed | D36: 206
C37: Debt issue expense | D37: 208
C38: Development expenses claimed in current year | D38: 212
C39: Financing fees deducted in books | D39: 216 | E39: 919144
C40: Gain on settlement of debt | D40: 220
C41: Non-deductible advertising | D41: 226
C42: Non-deductible interest | D42: 227
C43: Non-deductible legal and accounting fees | D43: 228
C44: Recapture of SR&ED expenditures | D44: 231
C45: Share issue expense | D45: 235
C46: Write down of capital property | D46: 236
C47: Amounts received in respect of qualifying environment trust per paragraphs 12(1)(z.1) and 12(1)(z.2) | D47: 237
C48: Other Additions
C49: Interest Expensed on Capital Leases | D49: 290
C50: Realized Income from Deferred Credit Accounts | D50: 291
C51: Pensions | D51: 292
C52: Non-deductible penalties | D52: 293
C53: ARO Accretion expense | E53: 23685
C54: Capital Contributions Received (ITA 12(1)(x)) | E54: =17523508-1781 -> 17521727
C55: Deferred Revenue (ITA 12(1)(a)) | E55: 793994
C56: Non-deductible portion of auto leases (>$800/month)
C57: Investment Tax Credits taxed in the year | E57: =+'N.PILs,TaxProvision Bridge-Corr'!I33 -> 2263000
C62: Total Additions | E62: =SUM(E12:E61) -> 415599823
C63: Deductions:
C64: Gain on disposal of assets per financial statements | D64: 401 | E64: 453469
C65: Dividends not taxable under section 83 | D65: 402
C66: Capital cost allowance from Schedule 8 | D66: 403 | E66: =+'I. Sch 8 CCA Bridge Year-Corr'!L46 -> 220984070.6
C67: Terminal loss from Schedule 8 | D67: 404
C68: Cumulative eligible capital deduction from Schedule 10 | D68: 405 | E68: =+'J. Sch 10 CEC Bridge Year-Corr'!K40 -> 1616932.25
C69: Allowable business investment loss | D69: 406
C70: Deferred and prepaid expenses | D70: 409
C71: Scientific research expenses claimed in year | D71: 411
C72: Tax reserves claimed in current year | D72: 413
C73: Reserves from financial statements - balance at beginning of year | D73: 414 | E73: =+'K. Sch 13 Tax Reserves Bridge'!F45 -> 235460000
C74: Contributions to deferred income plans | D74: 416
C75: Book income of joint venture or partnership | D75: 305
C76: Equity in income from subsidiary or affiliates | D76: 306
C77: Other deductions: (Please explain in detail the nature of the item)
C79: Interest capitalized for accounting deducted for tax | D79: 390
C80: Capital Lease Payments | D80: 391
C81: Non-taxable imputed interest income on deferral and variance accounts | D81: 392
C82: Financing Fees for Tax Under S.20(1)(e) / 20(1)(e.1) | E82: 1961842
C83: Excess Interest (see Tab "Sch 7-3 Interest Bridge" | E83: ='Sch 7-3 Interest Bridge-Corr'!F25 -> 0
C84: ARO Payments - Deductible for Tax when Paid | E84: 1555139
C85: ARO provision credit to income | E85: 292382
C86: ITA 13(7.4) Election - Capital Contributions Received | E86: =E54 -> 17521727
C87: Deferred Revenue - ITA 20(1)(m) reserve | E87: =+E55 -> 793994
C88: Land Lease payment capitalized for accounting | E88: 89423
C89: Lease payment capitalized for accounting | E89: =1850625+1633306 -> 3483931
C90: Other Post-Employment Benefits adjustment - change in balance with no Income Statement Impact | E90: 422000
C91: Other Post-Employment Benefits adjustment - current year capitalized portion with no Income Statement Impact | E91: 6295217
C92: Other Post-Employment Benefits adjustment - sick leave payment credit to income | E92: 206000
C93: Lease Cancellation payment | E93: 46154
C96: Total Deductions | E96: =SUM(E64:E95) -> 491182280.8
C98: Net Income for Tax Purposes | E98: =+E10+E62-E96 -> 33157035.16
C99: Charitable donations from Schedule 2 | D99: 311
C100: Taxable dividends deductible under section 112 or 113, from Schedule 3 (item 82) | D100: 320
C101: Non-capital losses of preceding taxation years from Schedule 4 | D101: 331
C102: Net-capital losses of preceding taxation years from Schedule 4 (Please include explanation and calculation in Manager's summary) | D102: 332
C103: Limited partnership losses of preceding taxation years from Schedule 4 | D103: 335
C105: TAXABLE INCOME | E105: =+E98-SUM(E99:E103) -> 33157035.16
B108: Note: | C108: Schedule is unchanged from Update provided in September 2014 except the following:
C109: - Amortization of tangible assets, Capital Contributions Received (ITA 12(1)(x)), Capital cost allowance from Schedule 8, Cumulative eligible capital deduction from Schedule 10 and ITA 13(7.4) Election - Capital Contributions Received

Sheet Sch 7-3 Interest Bridge-Corr
B6: Toronto Hydro-Electric System Limited
B7: Excess Interest Expense - Bridge Year
B10: Calculated Deemed Interest Expense | F10: 88126662
B12: Bridge Year Actual Interest Expense | F12: =63994542+3270000+3099781 -> 70364323
B14: Bridge Year Capitalized Interest (USoA 6040)
B15: Bridge Year Capitalized Interest (USoA 6042) | F15: 0
B17: Bridge Year Actual Interest | F17: =SUM(F12:F15) -> 70364323
B20: Interest Forecast for Tier 1 or 2 Adjustments
B22: Total Interest | F22: =F17+F20 -> 70364323
B25: Excess Interest Expense for Bridge Year PILs | F25: =IF((F22-F10)<0, 0, F22-F10) -> 0
B30: Note: Bridge Year Actual Interest Expense is updated

Sheet N.PILs,TaxProvision Bridge-Corr
C7: Toronto Hydro-Electric System Limited
C8: PILS Tax Provision - Bridge Year
I9: Wires Only
C11: Regulatory Taxable Income | I11: ='M. AdjTaxableIncomeBridge-Corr'!E105 -> 33157035.16 | J11: A
C13: Ontario Income Taxes
C14: Income tax payable | D14: Ontario Income Tax | E14: =IF(I11<=500000,'B. Tax Rates & Exemptions'!H34,'B. Tax Rates & Exemptions'!H24) -> 0.115 | F14: B | G14: =IF(I11>0,I11*E14,0) -> 3813059.043 | H14: C = A * B
C16: Small business credit | D16: Ontario Small Business Threshold | E16: =IF(I11>'B. Tax Rates & Exemptions'!H30,'B. Tax Rates & Exemptions'!H30,0) -> 500000 | F16: D
D17: Rate reduction | E17: =-('B. Tax Rates & Exemptions'!H24-'B. Tax Rates & Exemptions'!H34) -> -0.07 | F17: E | G17: =IF(I11>0,E16*E17,0) -> -35000 | H17: F = D * E
C21: Ontario Income tax | I21: =SUM(G14:G20) -> 3778059.043 | J21: J = C + F
C24: Combined Tax Rate and PILs | D24: Effective Ontario Tax Rate | G24: =IF(I11>0,I21/I11,0) -> 0.1139444171 | H24: K = J / A
D25: Federal tax rate (Maximum 15%) | G25: ='B. Tax Rates & Exemptions'!H22 -> 0.15 | H25: L
D26: Combined tax rate | I26: =SUM(G24:G25) -> 0.2639444171 | J26: M = K + L
C29: Total Income Taxes | I29: =I11*I26 -> 8751614.316 | J29: N = A * M
C31: Investment Tax Credits | I31: 1206000 | J31: O
C32: Miscellaneous Tax Credits | I32: =1057000 -> 1057000 | J32: P
C33: Total Tax Credits | I33: =SUM(I31:I32) -> 2263000 | J33: Q = O + P
C35: Corporate PILs/Income Tax Provision for Bridge Year | I35: =IF(I29-I33<0,0,I29-I33) -> 6488614.316 | J35: R = N - Q
C37: Corporate PILs/Income Tax Provision Gross Up 1 | G37: =1-I26 -> 0.7360555829 | H37: S = 1 - M | I37: =I35/G37-I35 -> 2326772.003 | J37: T = R / S - R
C40: Income Tax (grossed-up) | I40: =I35+I37 -> 8815386.32 | J40: U = R + T
C41: Tax credits reclass to OM&A | I41: 700000 | J41: V
C42: Income Tax (grossed-up) | I42: =+I40+I41 -> 9515386.32 | J42: W = U + V
C45: Note:
C46: 1. This is for the derivation of Brdige year PILs income tax expense and should not be used for Test year revenue requirement calculations.

Sheet O.Sch 8 CCA Test Year-Corrected
B7: Toronto Hydro-Electric System Limited
B8: Schedule 8 CCA - Test Year
C10: Class | D10: Class Description | E10: UCC Test Year Opening Balance (note 1) | F10: Additions | G10: Disposals (Negative) | H10: UCC Before 1/2 Yr Adjustment | I10: 1/2 Year Rule {1/2 Additions Less Disposals} | J10: Reduced UCC | K10: Rate % | L10: Test Year CCA | M10: UCC End of Test Year
C11: =IF(ISBLANK('I. Sch 8 CCA Bridge Year-Corr'!C12), "", 'I. Sch 8 CCA Bridge Year-Corr'!C12) -> 1 | D11: =IF(ISBLANK('I. Sch 8 CCA Bridge Year-Corr'!D12), "", 'I. Sch 8 CCA Bridge Year-Corr'!D12) -> Distribution System - post 1987 | E11: =IF(ISBLANK('I. Sch 8 CCA Bridge Year-Corr'!M12), "", 'I. Sch 8 CCA Bridge Year-Corr'!M12)+F50 -> 1051152700 | F11: =89388645+7467267-36967415 -> 59888497 | G11: -16318959 | H11: =MAX((SUM(E11:G11)),0) -> 1094722238 | I11: =IF((F11+G11)<=0, 0,(F11+G11)*0.5) -> 21784769 | J11: =+H11-I11 -> 1072937469 | K11: ='I. Sch 8 CCA Bridge Year-Corr'!K12 -> 0.04 | L11: =IF(+J11<0,+J11,+J11*K11) -> 42917498.74 | M11: =MAX(0,+H11-L11) -> 1051804739
C12: =IF(ISBLANK('I. Sch 8 CCA Bridge Year-Corr'!C13), "", 'I. Sch 8 CCA Bridge Year-Corr'!C13) -> 1 Enhanced | D12: =IF(ISBLANK('I. Sch 8 CCA Bridge Year-Corr'!D13), "", 'I. Sch 8 CCA Bridge Year-Corr'!D13) -> Non-residential Buildings Reg. 1100(1)(a.1) election | E12: =IF(ISBLANK('I. Sch 8 CCA Bridge Year-Corr'!M13), "", 'I. Sch 8 CCA Bridge Year-Corr'!M13) -> 0 | H12: 0 | I12: =IF((F12+G12)<=0, 0,(F12+G12)*0.5) -> 0 | J12: 0 | K12: ='I. Sch 8 CCA Bridge Year-Corr'!K13 -> 0.06 | L12: 0 | M12: 0
C13: =IF(ISBLANK('I. Sch 8 CCA Bridge Year-Corr'!C14), "", 'I. Sch 8 CCA Bridge Year-Corr'!C14) -> 2 | D13: =IF(ISBLANK('I. Sch 8 CCA Bridge Year-Corr'!D14), "", 'I. Sch 8 CCA Bridge Year-Corr'!D14) -> Distribution System - pre 1988 | E13: =IF(ISBLANK('I. Sch 8 CCA Bridge Year-Corr'!M14), "", 'I. Sch 8 CCA Bridge Year-Corr'!M14) -> 291132705.4 | H13: 291132705.4 | I13: 0 | J13: 291132705.4 | K13: ='I. Sch 8 CCA Bridge Year-Corr'!K14 -> 0.06 | L13: 17467962.32 | M13: 273664743
C14: =IF(ISBLANK('I. Sch 8 CCA Bridge Year-Corr'!C15), "", 'I. Sch 8 CCA Bridge Year-Corr'!C15) -> 8 | D14: =IF(ISBLANK('I. Sch 8 CCA Bridge Year-Corr'!D15), "", 'I. Sch 8 CCA Bridge Year-Corr'!D15) -> General Office/Stores Equip | E14: =IF(ISBLANK('I. Sch 8 CCA Bridge Year-Corr'!M15), "", 'I. Sch 8 CCA Bridge Year-Corr'!M15) -> 26779432.8 | F14: =5588993-1314331-859599 -> 3415063 | H14: 30194495.8 | I14: 1707531.5 | J14: 28486964.3 | K14: ='I. Sch 8 CCA Bridge Year-Corr'!K15 -> 0.2 | L14: 5697392.86 | M14: 24497102.94
C15: =IF(ISBLANK('I. Sch 8 CCA Bridge Year-Corr'!C16), "", 'I. Sch 8 CCA Bridge Year-Corr'!C16) -> 10 | D15: =IF(ISBLANK('I. Sch 8 CCA Bridge Year-Corr'!D16), "", 'I. Sch 8 CCA Bridge Year-Corr'!D16) -> Computer Hardware/ Vehicles | E15: =IF(ISBLANK('I. Sch 8 CCA Bridge Year-Corr'!M16), "", 'I. Sch 8 CCA Bridge Year-Corr'!M16) -> 13390915.65 | F15: 3876736 | H15: 17267651.65 | I15: 1938368 | J15: 15329283.65 | K15: ='I. Sch 8 CCA Bridge Year-Corr'!K16 -> 0.3 | L15: 4598785.095 | M15: 12668866.55
C16: =IF(ISBLANK('I. Sch 8 CCA Bridge Year-Corr'!C17), "", 'I. Sch 8 CCA Bridge Year-Corr'!C17) -> 10.1 | D16: =IF(ISBLANK('I. Sch 8 CCA Bridge Year-Corr'!D17), "", 'I. Sch 8 CCA Bridge Year-Corr'!D17) -> Certain Automobiles | E16: =IF(ISBLANK('I. Sch 8 CCA Bridge Year-Corr'!M17), "", 'I. Sch 8 CCA Bridge Year-Corr'!M17) -> 0 | H16: 0 | I16: 0 | J16: 0 | K16: ='I. Sch 8 CCA Bridge Year-Corr'!K17 -> 0.3 | L16: 0 | M16: 0
C17: =IF(ISBLANK('I. Sch 8 CCA Bridge Year-Corr'!C18), "", 'I. Sch 8 CCA Bridge Year-Corr'!C18) -> 12 | D17: =IF(ISBLANK('I. Sch 8 CCA Bridge Year-Corr'!D18), "", 'I. Sch 8 CCA Bridge Year-Corr'!D18) -> Computer Software | E17: =IF(ISBLANK('I. Sch 8 CCA Bridge Year-Corr'!M18), "", 'I. Sch 8 CCA Bridge Year-Corr'!M18) -> 7149799 | F17: =24144106-462380 -> 23681726 | H17: 30831525 | I17: 11840863 | J17: 18990662 | K17: ='I. Sch 8 CCA Bridge Year-Corr'!K18 -> 1 | L17: 18990662 | M17: 11840863
C18: =IF(ISBLANK('I. Sch 8 CCA Bridge Year-Corr'!C19), "", 'I. Sch 8 CCA Bridge Year-Corr'!C19) -> 13 1 | D18: =IF(ISBLANK('I. Sch 8 CCA Bridge Year-Corr'!D19), "", 'I. Sch 8 CCA Bridge Year-Corr'!D19) -> Lease # 1 | E18: =IF(ISBLANK('I. Sch 8 CCA Bridge Year-Corr'!M19), "", 'I. Sch 8 CCA Bridge Year-Corr'!M19) -> 0 | H18: 0 | I18: 0 | J18: 0 | K18: SL | L18: 0 | M18: 0
C19: =IF(ISBLANK('I. Sch 8 CCA Bridge Year-Corr'!C20), "", 'I. Sch 8 CCA Bridge Year-Corr'!C20) -> 13 2 | D19: =IF(ISBLANK('I. Sch 8 CCA Bridge Year-Corr'!D20), "", 'I. Sch 8 CCA Bridge Year-Corr'!D20) -> Lease #2 | E19: =IF(ISBLANK('I. Sch 8 CCA Bridge Year-Corr'!M20), "", 'I. Sch 8 CCA Bridge Year-Corr'!M20) -> 31168 | H19: 31168 | I19: 0 | J19: 31168 | K19: SL | L19: 31169 | M19: 0
C20: =IF(ISBLANK('I. Sch 8 CCA Bridge Year-Corr'!C21), "", 'I. Sch 8 CCA Bridge Year-Corr'!C21) -> 13 3 | D20: =IF(ISBLANK('I. Sch 8 CCA Bridge Year-Corr'!D21), "", 'I. Sch 8 CCA Bridge Year-Corr'!D21) -> Lease # 3 | E20: =IF(ISBLANK('I. Sch 8 CCA Bridge Year-Corr'!M21), "", 'I. Sch 8 CCA Bridge Year-Corr'!M21) -> 57546 | H20: 57546 | I20: 0 | J20: 57546 | K20: SL | L20: 38365 | M20: 19181
C21: =IF(ISBLANK('I. Sch 8 CCA Bridge Year-Corr'!C22), "", 'I. Sch 8 CCA Bridge Year-Corr'!C22) -> 13 4 | D21: =IF(ISBLANK('I. Sch 8 CCA Bridge Year-Corr'!D22), "", 'I. Sch 8 CCA Bridge Year-Corr'!D22) -> Lease # 4 | E21: =IF(ISBLANK('I. Sch 8 CCA Bridge Year-Corr'!M22), "", 'I. Sch 8 CCA Bridge Year-Corr'!M22) -> 293732 | H21: 293732 | I21: 0 | J21: 293732 | K21: SL | L21: =123739-6246-1 -> 117492 | M21: 176240
C22: =IF(ISBLANK('I. Sch 8 CCA Bridge Year-Corr'!C23), "", 'I. Sch 8 CCA Bridge Year-Corr'!C23) -> 13 5 | D22: =IF(ISBLANK('I. Sch 8 CCA Bridge Year-Corr'!D23), "", 'I. Sch 8 CCA Bridge Year-Corr'!D23) -> Lease # 5 | E22: =IF(ISBLANK('I. Sch 8 CCA Bridge Year-Corr'!M23), "", 'I. Sch 8 CCA Bridge Year-Corr'!M23) -> 348832 | H22: =MAX((SUM(E22:G22)),0) -> 348832 | I22: =IF((F22+G22)<=0, 0,(F22+G22)*0.5) -> 0 | J22: =+H22-I22 -> 348832 | K22: SL | L22: 77518 | M22: =MAX(0,+H22-L22) -> 271314
C23: =IF(ISBLANK('I. Sch 8 CCA Bridge Year-Corr'!C24), "", 'I. Sch 8 CCA Bridge Year-Corr'!C24) -> 13 6 | D23: =IF(ISBLANK('I. Sch 8 CCA Bridge Year-Corr'!D24), "", 'I. Sch 8 CCA Bridge Year-Corr'!D24) -> Lease # 6 | E23: =IF(ISBLANK('I. Sch 8 CCA Bridge Year-Corr'!M24), "", 'I. Sch 8 CCA Bridge Year-Corr'!M24) -> 0 | F23: 43066 | H23: =MAX((SUM(E23:G23)),0) -> 43066 | I23: =IF((F23+G23)<=0, 0,(F23+G23)*0.5) -> 21533 | J23: =+H23-I23 -> 21533 | K23: SL | L23: 4307 | M23: =MAX(0,+H23-L23) -> 38759
C24: 13 7 | D24: Lease # 7 | E24: 0 | H24: =MAX((SUM(E24:G24)),0) -> 0 | I24: 0 | J24: =+H24-I24 -> 0 | K24: SL | L24: 0 | M24: =MAX(0,+H24-L24) -> 0
C25: =IF(ISBLANK('I. Sch 8 CCA Bridge Year-Corr'!C25), "", 'I. Sch 8 CCA Bridge Year-Corr'!C25) -> 14 | D25: =IF(ISBLANK('I. Sch 8 CCA Bridge Year-Corr'!D25), "", 'I. Sch 8 CCA Bridge Year-Corr'!D25) -> Franchise | E25: =IF(ISBLANK('I. Sch 8 CCA Bridge Year-Corr'!M25), "", 'I. Sch 8 CCA Bridge Year-Corr'!M25) -> 0 | H25: 0 | I25: 0 | J25: 0 | L25: 0 | M25: 0
C26: =IF(ISBLANK('I. Sch 8 CCA Bridge Year-Corr'!C26), "", 'I. Sch 8 CCA Bridge Year-Corr'!C26) -> 17 | D26: =IF(ISBLANK('I. Sch 8 CCA Bridge Year-Corr'!D26), "", 'I. Sch 8 CCA Bridge Year-Corr'!D26) -> New Electrical Generating Equipment Acq'd after Feb 27/00 Other Than Bldgs | E26: =IF(ISBLANK('I. Sch 8 CCA Bridge Year-Corr'!M26), "", 'I. Sch 8 CCA Bridge Year-Corr'!M26) -> 17508187.88 | G26: -1034729 | H26: 16473458.88 | I26: 0 | J26: 16473458.88 | K26: ='I. Sch 8 CCA Bridge Year-Corr'!K26 -> 0.08 | L26: 1317876.71 | M26: 15155582.17
C27: =IF(ISBLANK('I. Sch 8 CCA Bridge Year-Corr'!C27), "", 'I. Sch 8 CCA Bridge Year-Corr'!C27) -> 42 | D27: =IF(ISBLANK('I. Sch 8 CCA Bridge Year-Corr'!D27), "", 'I. Sch 8 CCA Bridge Year-Corr'!D27) -> Fibre Optic Cable | E27: =IF(ISBLANK('I. Sch 8 CCA Bridge Year-Corr'!M27), "", 'I. Sch 8 CCA Bridge Year-Corr'!M27) -> 32920.8 | H27: 32920.8 | I27: 0 | J27: 32920.8 | K27: ='I. Sch 8 CCA Bridge Year-Corr'!K27 -> 0.12 | L27: =IF(+J27<0,+J27,+J27*K27)+1 -> 3951.496 | M27: 28969.304
C28: =IF(ISBLANK('I. Sch 8 CCA Bridge Year-Corr'!C28), "", 'I. Sch 8 CCA Bridge Year-Corr'!C28) -> 43.1 | D28: =IF(ISBLANK('I. Sch 8 CCA Bridge Year-Corr'!D28), "", 'I. Sch 8 CCA Bridge Year-Corr'!D28) -> Certain Energy-Efficient Electrical Generating Equipment | E28: =IF(ISBLANK('I. Sch 8 CCA Bridge Year-Corr'!M28), "", 'I. Sch 8 CCA Bridge Year-Corr'!M28) -> 0 | H28: 0 | I28: 0 | J28: 0 | K28: ='I. Sch 8 CCA Bridge Year-Corr'!K28 -> 0.3 | L28: =IF(+J28<0,+J28,+J28*K28) -> 0 | M28: 0
C29: =IF(ISBLANK('I. Sch 8 CCA Bridge Year-Corr'!C29), "", 'I. Sch 8 CCA Bridge Year-Corr'!C29) -> 43.2 | D29: =IF(ISBLANK('I. Sch 8 CCA Bridge Year-Corr'!D29), "", 'I. Sch 8 CCA Bridge Year-Corr'!D29) -> Certain Clean Energy Generation Equipment | E29: =IF(ISBLANK('I. Sch 8 CCA Bridge Year-Corr'!M29), "", 'I. Sch 8 CCA Bridge Year-Corr'!M29) -> 0 | H29: 0 | I29: 0 | J29: 0 | K29: ='I. Sch 8 CCA Bridge Year-Corr'!K29 -> 0.5 | L29: 0 | M29: 0
C30: =IF(ISBLANK('I. Sch 8 CCA Bridge Year-Corr'!C30), "", 'I. Sch 8 CCA Bridge Year-Corr'!C30) -> 45 | D30: =IF(ISBLANK('I. Sch 8 CCA Bridge Year-Corr'!D30), "", 'I. Sch 8 CCA Bridge Year-Corr'!D30) -> Computers & Systems Software acq'd post Mar 22/04 | E30: =IF(ISBLANK('I. Sch 8 CCA Bridge Year-Corr'!M30), "", 'I. Sch 8 CCA Bridge Year-Corr'!M30) -> 44911.9 | H30: 44911.9 | I30: 0 | J30: 44911.9 | K30: ='I. Sch 8 CCA Bridge Year-Corr'!K30 -> 0.45 | L30: 20210.355 | M30: 24701.545
C31: =IF(ISBLANK('I. Sch 8 CCA Bridge Year-Corr'!C31), "", 'I. Sch 8 CCA Bridge Year-Corr'!C31) -> 46 | D31: =IF(ISBLANK('I. Sch 8 CCA Bridge Year-Corr'!D31), "", 'I. Sch 8 CCA Bridge Year-Corr'!D31) -> Data Network Infrastructure Equipment (acq'd post Mar 22/04) | E31: =IF(ISBLANK('I. Sch 8 CCA Bridge Year-Corr'!M31), "", 'I. Sch 8 CCA Bridge Year-Corr'!M31) -> 0 | F31: 196970 | H31: 196970 | I31: 98485 | J31: 98485 | K31: ='I. Sch 8 CCA Bridge Year-Corr'!K31 -> 0.3 | L31: 29545.5 | M31: 167424.5
C32: =IF(ISBLANK('I. Sch 8 CCA Bridge Year-Corr'!C32), "", 'I. Sch 8 CCA Bridge Year-Corr'!C32) -> 47 | D32: =IF(ISBLANK('I. Sch 8 CCA Bridge Year-Corr'!D32), "", 'I. Sch 8 CCA Bridge Year-Corr'!D32) -> Distribution System - post February 2005 | E32: =IF(ISBLANK('I. Sch 8 CCA Bridge Year-Corr'!M32), "", 'I. Sch 8 CCA Bridge Year-Corr'!M32) -> 1563252621 | F32: =403720561+861339+1980131-33937520 -> 372624511 | H32: 1935877132 | I32: 186312255.5 | J32: 1749564877 | K32: ='I. Sch 8 CCA Bridge Year-Corr'!K32 -> 0.08 | L32: =IF(+J32<0,+J32,+J32*K32) -> 139965190.1 | M32: 1795911942
C33: =IF(ISBLANK('I. Sch 8 CCA Bridge Year-Corr'!C33), "", 'I. Sch 8 CCA Bridge Year-Corr'!C33) -> 50 | D33: =IF(ISBLANK('I. Sch 8 CCA Bridge Year-Corr'!D33), "", 'I. Sch 8 CCA Bridge Year-Corr'!D33) -> Data Network Infrastructure Equipment - post Mar 2007 | E33: =IF(ISBLANK('I. Sch 8 CCA Bridge Year-Corr'!M33), "", 'I. Sch 8 CCA Bridge Year-Corr'!M33) -> 26836289.07 | F33: =13150992-11235 -> 13139757 | H33: 39976046.08 | I33: 6569878.5 | J33: 33406167.58 | K33: ='I. Sch 8 CCA Bridge Year-Corr'!K33 -> 0.55 | L33: 18373392.17 | M33: 21602653.91
C34: =IF(ISBLANK('I. Sch 8 CCA Bridge Year-Corr'!C34), "", 'I. Sch 8 CCA Bridge Year-Corr'!C34) -> 52 | D34: =IF(ISBLANK('I. Sch 8 CCA Bridge Year-Corr'!D34), "", 'I. Sch 8 CCA Bridge Year-Corr'!D34) -> Computer Hardware and system software | E34: =IF(ISBLANK('I. Sch 8 CCA Bridge Year-Corr'!M34), "", 'I. Sch 8 CCA Bridge Year-Corr'!M34) -> 0 | H34: 0 | I34: 0 | J34: 0 | K34: ='I. Sch 8 CCA Bridge Year-Corr'!K34 -> 1 | L34: 0 | M34: 0
C35: =IF(ISBLANK('I. Sch 8 CCA Bridge Year-Corr'!C35), "", 'I. Sch 8 CCA Bridge Year-Corr'!C35) -> 95 | D35: =IF(ISBLANK('I. Sch 8 CCA Bridge Year-Corr'!D35), "", 'I. Sch 8 CCA Bridge Year-Corr'!D35) -> CWIP | E35: =IF(ISBLANK('I. Sch 8 CCA Bridge Year-Corr'!M35), "", 'I. Sch 8 CCA Bridge Year-Corr'!M35) -> 405809399 | H35: 405809399 | I35: 0 | J35: 405809399 | K35: ='I. Sch 8 CCA Bridge Year-Corr'!K35 -> 0 | L35: 0 | M35: 405809399
C36: =IF(ISBLANK('I. Sch 8 CCA Bridge Year-Corr'!C36), "", 'I. Sch 8 CCA Bridge Year-Corr'!C36) ->  | D36: =IF(ISBLANK('I. Sch 8 CCA Bridge Year-Corr'!D36), "", 'I. Sch 8 CCA Bridge Year-Corr'!D36) ->  | E36: =IF(ISBLANK('I. Sch 8 CCA Bridge Year-Corr'!E36), "", 'I. Sch 8 CCA Bridge Year-Corr'!E36) ->  | H36: 0 | I36: 0 | J36: 0 | K36: ='I. Sch 8 CCA Bridge Year-Corr'!K36 -> 0 | L36: 0 | M36: 0
C37: =IF(ISBLANK('I. Sch 8 CCA Bridge Year-Corr'!C37), "", 'I. Sch 8 CCA Bridge Year-Corr'!C37) ->  | D37: =IF(ISBLANK('I. Sch 8 CCA Bridge Year-Corr'!D37), "", 'I. Sch 8 CCA Bridge Year-Corr'!D37) ->  | E37: =IF(ISBLANK('I. Sch 8 CCA Bridge Year-Corr'!E37), "", 'I. Sch 8 CCA Bridge Year-Corr'!E37) ->  | H37: 0 | I37: 0 | J37: 0 | K37: ='I. Sch 8 CCA Bridge Year-Corr'!K37 -> 0 | L37: 0 | M37: 0
C38: =IF(ISBLANK('I. Sch 8 CCA Bridge Year-Corr'!C38), "", 'I. Sch 8 CCA Bridge Year-Corr'!C38) ->  | D38: =IF(ISBLANK('I. Sch 8 CCA Bridge Year-Corr'!D38), "", 'I. Sch 8 CCA Bridge Year-Corr'!D38) ->  | E38: =IF(ISBLANK('I. Sch 8 CCA Bridge Year-Corr'!E38), "", 'I. Sch 8 CCA Bridge Year-Corr'!E38) ->  | H38: 0 | I38: 0 | J38: 0 | K38: ='I. Sch 8 CCA Bridge Year-Corr'!K38 -> 0 | L38: 0 | M38: 0
C39: =IF(ISBLANK('I. Sch 8 CCA Bridge Year-Corr'!C39), "", 'I. Sch 8 CCA Bridge Year-Corr'!C39) ->  | D39: =IF(ISBLANK('I. Sch 8 CCA Bridge Year-Corr'!D39), "", 'I. Sch 8 CCA Bridge Year-Corr'!D39) ->  | E39: =IF(ISBLANK('I. Sch 8 CCA Bridge Year-Corr'!E39), "", 'I. Sch 8 CCA Bridge Year-Corr'!E39) ->  | H39: =MAX((SUM(E39:G39)),0) -> 0 | I39: 0 | J39: =+H39-I39 -> 0 | K39: ='I. Sch 8 CCA Bridge Year-Corr'!K39 -> 0 | L39: =IF(+J39<0,+J39,+J39*K39) -> 0 | M39: 0
C40: =IF(ISBLANK('I. Sch 8 CCA Bridge Year-Corr'!C40), "", 'I. Sch 8 CCA Bridge Year-Corr'!C40) ->  | D40: =IF(ISBLANK('I. Sch 8 CCA Bridge Year-Corr'!D40), "", 'I. Sch 8 CCA Bridge Year-Corr'!D40) ->  | E40: =IF(ISBLANK('I. Sch 8 CCA Bridge Year-Corr'!E40), "", 'I. Sch 8 CCA Bridge Year-Corr'!E40) ->  | H40: =MAX((SUM(E40:G40)),0) -> 0 | I40: 0 | J40: =+H40-I40 -> 0 | K40: ='I. Sch 8 CCA Bridge Year-Corr'!K40 -> 0 | L40: =IF(+J40<0,+J40,+J40*K40) -> 0 | M40: 0
C41: =IF(ISBLANK('I. Sch 8 CCA Bridge Year-Corr'!C41), "", 'I. Sch 8 CCA Bridge Year-Corr'!C41) ->  | D41: =IF(ISBLANK('I. Sch 8 CCA Bridge Year-Corr'!D41), "", 'I. Sch 8 CCA Bridge Year-Corr'!D41) ->  | E41: =IF(ISBLANK('I. Sch 8 CCA Bridge Year-Corr'!E41), "", 'I. Sch 8 CCA Bridge Year-Corr'!E41) ->  | H41: =MAX((SUM(E41:G41)),0) -> 0 | I41: 0 | J41: =+H41-I41 -> 0 | K41: ='I. Sch 8 CCA Bridge Year-Corr'!K41 -> 0 | L41: =IF(+J41<0,+J41,+J41*K41) -> 0 | M41: 0
C42: =IF(ISBLANK('I. Sch 8 CCA Bridge Year-Corr'!C42), "", 'I. Sch 8 CCA Bridge Year-Corr'!C42) ->  | D42: =IF(ISBLANK('I. Sch 8 CCA Bridge Year-Corr'!D42), "", 'I. Sch 8 CCA Bridge Year-Corr'!D42) ->  | E42: =IF(ISBLANK('I. Sch 8 CCA Bridge Year-Corr'!E42), "", 'I. Sch 8 CCA Bridge Year-Corr'!E42) ->  | H42: 0 | I42: 0 | J42: 0 | K42: ='I. Sch 8 CCA Bridge Year-Corr'!K42 -> 0 | L42: 0 | M42: 0
C43: =IF(ISBLANK('I. Sch 8 CCA Bridge Year-Corr'!C43), "", 'I. Sch 8 CCA Bridge Year-Corr'!C43) ->  | D43: =IF(ISBLANK('I. Sch 8 CCA Bridge Year-Corr'!D43), "", 'I. Sch 8 CCA Bridge Year-Corr'!D43) ->  | E43: =IF(ISBLANK('I. Sch 8 CCA Bridge Year-Corr'!E43), "", 'I. Sch 8 CCA Bridge Year-Corr'!E43) ->  | H43: 0 | I43: 0 | J43: 0 | K43: ='I. Sch 8 CCA Bridge Year-Corr'!K43 -> 0 | L43: 0 | M43: 0
C44: =IF(ISBLANK('I. Sch 8 CCA Bridge Year-Corr'!C44), "", 'I. Sch 8 CCA Bridge Year-Corr'!C44) ->  | D44: =IF(ISBLANK('I. Sch 8 CCA Bridge Year-Corr'!D44), "", 'I. Sch 8 CCA Bridge Year-Corr'!D44) ->  | E44: =IF(ISBLANK('I. Sch 8 CCA Bridge Year-Corr'!E44), "", 'I. Sch 8 CCA Bridge Year-Corr'!E44) ->  | H44: 0 | I44: 0 | J44: 0 | K44: ='I. Sch 8 CCA Bridge Year-Corr'!K44 -> 0 | L44: 0 | M44: 0
C45: =IF(ISBLANK('I. Sch 8 CCA Bridge Year-Corr'!C45), "", 'I. Sch 8 CCA Bridge Year-Corr'!C45) ->  | D45: =IF(ISBLANK('I. Sch 8 CCA Bridge Year-Corr'!D45), "", 'I. Sch 8 CCA Bridge Year-Corr'!D45) ->  | E45: =IF(ISBLANK('I. Sch 8 CCA Bridge Year-Corr'!E45), "", 'I. Sch 8 CCA Bridge Year-Corr'!E45) ->  | H45: 0 | I45: 0 | J45: 0 | K45: ='I. Sch 8 CCA Bridge Year-Corr'!K45 -> 0 | L45: 0 | M45: 0
D46: TOTAL | E46: =SUM(E11:E45) -> 3403821160 | F46: 476866326 | G46: -17353688 | H46: 3863333798 | I46: 230273683.5 | J46: 3633060115 | L46: =SUM(L11:L45) -> 249651318.4 | M46: =SUM(M11:M45) -> 3613682481
D48: Note 1 - UCC Opening balance for Class 1
D49: UCC ending balance per 2014 Bridge Year Schedule 8 | F49: =IF(ISBLANK('I. Sch 8 CCA Bridge Year-Corr'!M12), "", 'I. Sch 8 CCA Bridge Year-Corr'!M12) -> 1011495002
D50: UCC re: Transfer of Streetlighting assets per OEB's decision | F50: 39657698
D51: Adjusted UCC opening balance for Class 1 | F51: =+F49+F50 -> 1051152700

Sheet P. Sch 10 CEC Test Year-Corr
C5: Toronto Hydro-Electric System Limited
C6: Schedule 10 CEC - Test Year
C8: Cumulative Eligible Capital - Beginning of Year | K8: ='J. Sch 10 CEC Bridge Year-Corr'!K42 -> 21482099.89
C10: Additions
C11: Cost of Eligible Capital Property Acquired during Test Year | G11: =84096612+500000-38305110 -> 46291502
C13: Other Adjustments | G13: 0
C15: Subtotal | G15: =SUM(G11,G13) -> 46291502 | I15: x 3/4 = | J15: =3/4*G15 -> 34718626.5
C17: Non-taxable portion of a non-arm's length transferor's gain realized on the | G17: 0 | I17: x 1/2 = | J17: =IF((G17*0.5)<0, 0, G17*0.5) -> 0
C18: transfer of an ECP to the Corporation after Friday, December 20, 2002
J19: =IF((J15-J17)<0,0,J15-J17) -> 34718626.5 | K19: =J19 -> 34718626.5
C21: Amount transferred on amalgamation or wind-up of subsidiary | G21: 0 | K21: =G21 -> 0
F23: Subtotal | K23: =SUM(K8,K19,K21) -> 56200726.39
C25: Deductions
C27: Proceeds of sale (less outlays and expenses not otherwise deductible) | G27: 0
C28: from the disposition of all ECP during Test Year
C30: Other Adjustments | G30: 0
F32: Subtotal | G32: =SUM(G30,G27) -> 0 | I32: x 3/4 = | K32: =G32*3/4 -> 0
C36: Cumulative Eligible Capital Balance | K36: =K23-K32 -> 56200726.39
C38: Current Year Deduction (Carry Forward to Tab "Test Year Taxable Income") | I38: =K36 -> 56200726.39 | J38: x 7% = | K38: =I38*0.07 -> 3934050.847
C40: Cumulative Eligible Capital - Closing Balance | K40: =K36-K38 -> 52266675.54

Sheet Q. Sch 13 Tax Reserve Test Year
C8: Toronto Hydro-Electric System Limited
C9: Schedule 13 Tax Reserves - Test Year
C11: Continuity of Reserves
G13: Test Year Adjustments
C14: Description | D14: Bridge Year | E14: Eliminate Amounts Not Relevant for Bridge Year | F14: Adjusted Utility Balance | G14: Additions | H14: Disposals | I14: Balance for Test Year | J14: Change During the Year | K14: Disallowed Expenses
C16: Capital Gains Reserves ss.40(1) | D16: ='K. Sch 13 Tax Reserves Bridge'!I14 -> 0 | F16: =SUM(D16:E16) -> 0 | I16: =F16+G16-H16 -> 0 | J16: =+I16-F16 -> 0
C17: Tax Reserves Not Deducted for accounting purposes
C18: Reserve for doubtful accounts ss. 20(1)(l) | D18: ='K. Sch 13 Tax Reserves Bridge'!I16 -> 0 | F18: =SUM(D18:E18) -> 0 | I18: =F18+G18-H18 -> 0 | J18: =+I18-F18 -> 0
C19: Reserve for goods and services not delivered ss. 20(1)(m) | D19: ='K. Sch 13 Tax Reserves Bridge'!I17 -> 0 | F19: 0 | I19: 0 | J19: 0
C20: Reserve for unpaid amounts ss. 20(1)(n) | D20: ='K. Sch 13 Tax Reserves Bridge'!I18 -> 0 | F20: 0 | I20: 0 | J20: 0
C21: Debt & Share Issue Expenses ss. 20(1)(e) | D21: ='K. Sch 13 Tax Reserves Bridge'!I19 -> 0 | F21: 0 | I21: 0 | J21: 0
C22: Other tax reserves | D22: ='K. Sch 13 Tax Reserves Bridge'!I20 -> 0 | F22: 0 | I22: 0 | J22: 0
D23: ='K. Sch 13 Tax Reserves Bridge'!I21 -> 0 | F23: 0 | I23: 0 | J23: 0
D24: ='K. Sch 13 Tax Reserves Bridge'!I22 -> 0 | F24: 0 | I24: 0 | J24: 0
C25: Total | D25: =SUM(D18:D24) -> 0 | E25: 0 | F25: 0 | G25: 0 | H25: 0 | I25: 0 | J25: 0 | K25: 0
D26: 0
C27: Financial Statement Reserves (not deductible for Tax Purposes)
F28: =SUM(D28:E28) -> 0 | I28: =F28+G28-H28 -> 0
C29: General Reserve for Inventory Obsolescence (non-specific) | D29: =+'K. Sch 13 Tax Reserves Bridge'!I27 -> 0 | F29: 0 | I29: 0 | J29: =+I29-F29 -> 0
C30: General reserve for bad debts | D30: =+'K. Sch 13 Tax Reserves Bridge'!I28 -> 0 | F30: 0 | I30: 0 | J30: 0
C31: Accrued Employee Future Benefits: | D31: =+'K. Sch 13 Tax Reserves Bridge'!I29 -> 0 | F31: 0 | I31: 0 | J31: 0
C32: - Medical and Life Insurance | D32: =+'K. Sch 13 Tax Reserves Bridge'!I30 -> 0 | F32: 0 | I32: 0 | J32: 0
C33: -Short & Long-term Disability | D33: =+'K. Sch 13 Tax Reserves Bridge'!I31 -> 0 | F33: 0 | I33: 0 | J33: 0
C34: -Accmulated Sick Leave | D34: =+'K. Sch 13 Tax Reserves Bridge'!I32 -> 0 | F34: 0 | I34: 0 | J34: 0
C35: - Termination Cost | D35: =+'K. Sch 13 Tax Reserves Bridge'!I33 -> 0 | F35: 0 | I35: 0 | J35: 0
C36: - Other Post-Employment Benefits | D36: =+'K. Sch 13 Tax Reserves Bridge'!I34 -> 243040000 | F36: 243040000 | G36: 8521000 | I36: 251561000 | J36: 8521000
D37: =+'K. Sch 13 Tax Reserves Bridge'!I35 -> 0 | F37: 0 | I37: 0
C38: Provision for Environmental Costs | D38: =+'K. Sch 13 Tax Reserves Bridge'!I36 -> 0 | F38: 0 | I38: 0 | J38: 0
C39: Restructuring Costs | D39: =+'K. Sch 13 Tax Reserves Bridge'!I37 -> 0 | F39: 0 | I39: 0 | J39: 0
C40: Accrued Contingent Litigation Costs | D40: =+'K. Sch 13 Tax Reserves Bridge'!I38 -> 0 | F40: 0 | I40: 0 | J40: 0
C41: Accrued Self-Insurance Costs | D41: =+'K. Sch 13 Tax Reserves Bridge'!I39 -> 0 | F41: 0 | I41: 0 | J41: 0
C42: Other Contingent Liabilities | D42: =+'K. Sch 13 Tax Reserves Bridge'!I40 -> 0 | F42: 0 | I42: 0 | J42: 0
C43: Bonuses Accrued and Not Paid Within 180 Days of Year-End ss. 78(4) | D43: =+'K. Sch 13 Tax Reserves Bridge'!I41 -> 0 | F43: 0 | I43: 0 | J43: 0
C44: Unpaid Amounts to Related Person and Not Paid Within 3 Taxation Years ss. 78(1) | D44: =+'K. Sch 13 Tax Reserves Bridge'!I42 -> 0 | F44: 0 | I44: 0 | J44: 0
C45: Other | D45: =+'K. Sch 13 Tax Reserves Bridge'!I43 -> 0 | F45: 0 | I45: 0 | J45: 0
D46: =+'K. Sch 13 Tax Reserves Bridge'!I44 -> 0 | F46: 0 | I46: 0 | J46: 0
C47: Total | D47: =SUM(D29:D46) -> 243040000 | E47: 0 | F47: 243040000 | G47: 8521000 | H47: 0 | I47: 251561000 | J47: 8521000 | K47: 0
D48: 0

Sheet R. Sch 7-1 Loss Cfwd Test Year
C7: Toronto Hydro-Electric System Limited
C8: Schedule 7-1 Loss Carry Forward - Test Year
C10: Corporation Loss Continuity and Application
C12: Non-Capital Loss Carry Forward Deduction | F12: Total | G12: Non-Distribution Portion | H12: Utility Balance
C13: Actual/Estimated Bridge Year | H13: =F13-G13 -> 0
C14: Application of Loss Carry Forward to reduce taxable income in 2005 | H14: =F14-G14 -> 0
C15: Other Adjustments Add (+) Deduct (-) | H15: =F15-G15 -> 0
C16: Balance available for use in Test Year | F16: =F13-F14+F15 -> 0 | G16: =G13-G14+G15 -> 0 | H16: =H13-H14+H15 -> 0
C17: Amount to be used in Test Year | H17: =F17-G17 -> 0
C18: Balance available for use post Test Year | F18: =F16-F17 -> 0 | G18: =G16-G17 -> 0 | H18: =H16-H17 -> 0
C20: Net Capital Loss Carry Forward Deduction | F20: Total | G20: Non-Distribution Portion | H20: Utility Balance
C21: Actual/Estimated Bridge Year | H21: =F21-G21 -> 0
C22: Application of Loss Carry Forward to reduce taxable income in 2005 | H22: =F22-G22 -> 0
C23: Other Adjustments Add (+) Deduct (-) | H23: =F23-G23 -> 0
C24: Balance available for use in Test Year | F24: =F21-F22+F23 -> 0 | G24: =G21-G22+G23 -> 0 | H24: =H21-H22+H23 -> 0
C25: Amount to be used in Test Year | H25: =F25-G25 -> 0
C26: Balance available for use post Test Year | F26: =F24-F25 -> 0 | G26: =G24-G25 -> 0 | H26: =H24-H25 -> 0

Sheet S. TaxableIncome Test Year-Corr
C10: Toronto Hydro-Electric System Limited
C11: Taxable Income - Test Year
D13: T2 S1 line # | E13: Test Year Taxable Income
C14: Net Income Before Taxes | E14: =+'A. Data Input Sheet-Corrected'!G20 -> 120809337.9
C17: Additions:
C18: Interest and penalties on taxes | D18: 103
C19: Amortization of tangible assets 2-4 ADJUSTED ACCOUNTING DATA P489 | D19: 104 | E19: =174308068-1699427 -> 172608641
C20: Amortization of intangible assets 2-4 ADJUSTED ACCOUNTING DATA P490 | D20: 106
C21: Recapture of capital cost allowance from Schedule 8 | D21: 107
C22: Gain on sale of eligible capital property from Schedule 10 | D22: 108
C23: Income or loss for tax purposes- joint ventures or partnerships | D23: 109
C24: Loss in equity of subsidiaries and affiliates | D24: 110
C25: Loss on disposal of assets | D25: 111
C26: Charitable donations | D26: 112
C27: Taxable Capital Gains | D27: 113 | E27: 0
C28: Political Donations | D28: 114
C29: Deferred and prepaid expenses | D29: 116
C30: Scientific research expenditures deducted on financial statements | D30: 118
C31: Capitalized interest | D31: 119
C32: Non-deductible club dues and fees | D32: 120 | E32: 370489
C33: Non-deductible meals and entertainment expense | D33: 121 | E33: 123687
C34: Non-deductible automobile expenses | D34: 122
C35: Non-deductible life insurance premiums | D35: 123
C36: Non-deductible company pension plans | D36: 124
C37: Tax reserves beginning of year | D37: 125
C38: Reserves from financial statements- balance at end of year | D38: 126 | E38: =+'Q. Sch 13 Tax Reserve Test Year'!I47 -> 251561000
C39: Soft costs on construction and renovation of buildings | D39: 127
C40: Book loss on joint ventures or partnerships | D40: 205
C41: Capital items expensed | D41: 206
C42: Debt issue expense | D42: 208
C43: Development expenses claimed in current year | D43: 212
C44: Financing fees deducted in books | D44: 216 | E44: 1028805
C45: Gain on settlement of debt | D45: 220
C46: Non-deductible advertising | D46: 226
C47: Non-deductible interest | D47: 227
C48: Non-deductible legal and accounting fees | D48: 228
C49: Recapture of SR&ED expenditures | D49: 231
C50: Share issue expense | D50: 235
C51: Write down of capital property | D51: 236
C52: Amounts received in respect of qualifying environment trust per paragraphs 12(1)(z.1) and 12(1)(z.2) | D52: 237
C53: Other Additions: (please explain in detail the nature of the item)
C54: Interest Expensed on Capital Leases | D54: 290
C55: Realized Income from Deferred Credit Accounts | D55: 291
C56: Pensions | D56: 292
C57: Non-deductible penalties | D57: 293
C59: ARO Accretion expense | E59: 7461
C60: Capital Contributions Received (ITA 12(1)(x)) | E60: =13735511+1513510-4682 -> 15244339
C61: Deferred Revenue (ITA 12(1)(a)) | E61: 387306
C62: Non-deductible portion of auto leases (>$800/month)
C63: Investment Tax Credits taxed in the year | E63: =+'T.PILs,TaxProvisionTestYr-Corr'!I34 -> 2263000
C64: Derecognition of tangible assets | E64: 33932393
C71: Total Additions | E71: =SUM(E18:E70) -> 477527121
C72: Deductions:
C73: Gain on disposal of assets per financial statements | D73: 401
C74: Dividends not taxable under section 83 | D74: 402
C75: Capital cost allowance from Schedule 8 | D75: 403 | E75: ='O.Sch 8 CCA Test Year-Corrected'!L46 -> 249651318.4
C76: Terminal loss from Schedule 8 | D76: 404
C77: Cumulative eligible capital deduction from Schedule 10 CEC | D77: 405 | E77: ='P. Sch 10 CEC Test Year-Corr'!K38 -> 3934050.847
C78: Allowable business investment loss | D78: 406
C79: Deferred and prepaid expenses | D79: 409
C80: Scientific research expenses claimed in year | D80: 411
C81: Tax reserves end of year | D81: 413
C82: Reserves from financial statements - balance at beginning of year | D82: 414 | E82: =+'Q. Sch 13 Tax Reserve Test Year'!D47 -> 243040000
C83: Contributions to deferred income plans | D83: 416
C84: Book income of joint venture or partnership | D84: 305
C85: Equity in income from subsidiary or affiliates | D85: 306
C86: Other deductions: (Please explain in detail the nature of the item)
C87: Interest capitalized for accounting deducted for tax | D87: 390
C88: Capital Lease Payments | D88: 391
C89: Non-taxable imputed interest income on deferral and variance accounts | D89: 392
C90: Financing Fees for Tax Under S.20(1)(e) / S.20(1)(e.1) | E90: 1865108
C91: Excess Interest (see Tab "Sch 7-3 Interest Test Year") | E91: ='Sch 7-3 InterestTestYear-Corr'!F25 -> 3037819.458
C92: ARO Payments - Deductible for Tax when Paid | E92: 52000
C93: ITA 13(7.4) Election - Capital Contributions Received | E93: =+E60 -> 15244339
C94: Deferred Revenue - ITA 20(1)(m) reserve | E94: =+E61 -> 387306
C95: Land Lease payment capitalized for accounting | E95: 89423
C96: Lease payment capitalized for accounting | E96: =2267734+224378 -> 2492112
C97: Other Post-Employment Benefits adjustment - change in balance with no Income Statement Impact | E97: =214000+232000 -> 446000
C98: Other Post-Employment Benefits adjustment - current year capitalized portion with no Income Statement Impact | E98: 6519410
C99: Lease Cancellation payment | E99: =(3500000-15384-46154)/2 -> 1719231
C105: Total Deductions | E105: =SUM(E73:E104) -> 528478117.7
C107: NET INCOME FOR TAX PURPOSES | E107: =SUM(E14,E71)-E105 -> 69858341.17
C109: Charitable donations | D109: 311
C110: Taxable dividends received under section 112 or 113 | D110: 320
C111: Non-capital losses of preceding taxation years from Schedule 7-1 | D111: 331
C112: Net-capital losses of preceding taxation years (Please show calculation) | D112: 332
C113: Limited partnership losses of preceding taxation years from Schedule 4 | D113: 335
C115: REGULATORY TAXABLE INCOME | E115: =E107-SUM(E109:E114) -> 69858341.17

Sheet Sch 7-3 InterestTestYear-Corr
B7: Toronto Hydro-Electric System Limited
B8: Excess Interest Expense - Test Year
B10: Calculated Deemed Interest Expense | F10: =+'A. Data Input Sheet-Corrected'!G18+'A. Data Input Sheet-Corrected'!G19 -> 80175831.54
B12: Test Year Actual Interest Expense | F12: 83213651
B14: Test Year Capitalized Interest (USoA 6040)
B15: Test Year Capitalized Interest (USoA 6042) | F15: 0
B17: Test Year Actual Interest | F17: =SUM(F12:F15) -> 83213651
B20: Interest Forecast for Tier 1 or 2 Adjustments
B22: Total Interest | F22: =F17+F20 -> 83213651
B25: Excess Interest Expense for Test Year PILs | F25: =IF((F22-F10)<0, 0, F22-F10) -> 3037819.458

Sheet T.PILs,TaxProvisionTestYr-Corr
C8: Toronto Hydro-Electric System Limited
C9: PILS Tax Provision - Test Year
I10: Wires Only
C12: Regulatory Taxable Income | I12: ='S. TaxableIncome Test Year-Corr'!E115 -> 69858341.17 | J12: A
C14: Ontario Income Taxes
C15: Income tax payable | D15: Ontario Income Tax | E15: =IF(I12<=500000,'B. Tax Rates & Exemptions'!I34,'B. Tax Rates & Exemptions'!I24) -> 0.115 | F15: B | G15: =IF(I12>0,I12*E15,0) -> 8033709.235 | H15: C = A * B
C17: Small business credit | D17: Ontario Small Business Threshold | E17: =IF(I12>'B. Tax Rates & Exemptions'!I30,'B. Tax Rates & Exemptions'!I30,0) -> 500000 | F17: D
D18: Rate reduction | E18: =-('B. Tax Rates & Exemptions'!I24-'B. Tax Rates & Exemptions'!I34) -> -0.07 | F18: E | G18: =IF(I12>0,E17*E18,0) -> -35000 | H18: F = D * E
C22: Ontario Income tax | I22: =SUM(G15:G21) -> 7998709.235 | J22: J = C + F
C25: Combined Tax Rate and PILs | D25: Effective Ontario Tax Rate | G25: =IF(I12>0,I22/I12,0) -> 0.1144989861 | H25: K = J / A
D26: Federal tax rate | G26: =IF(I12<=0,0,IF(I12<=500000,'B. Tax Rates & Exemptions'!I32,'B. Tax Rates & Exemptions'!I22)) -> 0.15 | H26: L
D27: Combined tax rate | I27: =SUM(G25:G26) -> 0.2644989861 | J27: M = K + L
C30: Total Income Taxes | I30: =I12*I27 -> 18477460.41 | J30: N = A * M
C32: Investment Tax Credits | I32: 1206000 | J32: O
C33: Miscellaneous Tax Credits | I33: 1057000 | J33: P
C34: Total Tax Credits | I34: =SUM(I32:I33) -> 2263000 | J34: Q = O + P
C36: Corporate PILs/Income Tax Provision for Test Year | I36: =IF(I30-I34<0,0,I30-I34) -> 16214460.41 | J36: R = N - Q
C38: Corporate PILs/Income Tax Provision Gross Up 1 | G38: =1-I27 -> 0.7355010139 | H38: S = 1 - M | I38: =I36/G38-I36 -> 5831002.619 | J38: T = R / S - R
C41: Income Tax (grossed-up) | I41: =I36+I38 -> 22045463.03 | J41: U = R + T
C42: Tax credits reclass to OM&A | I42: 2000000 | J42: V
C43: Income Tax (grossed-up) | I43: =+I41+I42 -> 24045463.03 | J43: W = U + V
C45: Note:
C46: 1. This is for the derivation of revenue requirement and should not be used for sufficiency/deficiency calculations.
